Workbook

Sheet CAMP PILOTO EVOL
A1: ATUALIZADA EM: 13/12/24 17:04:25 | D1: OK | F1: OK | H1: OK | J1: OK | L1: OK | N1: OK | P1: OK | R1: OK | T1: DIF. LIDER | U1: DIF. 5º | V1: DIF. PRÓXIMO | W1: OK | Y1: DIF. LIDER | Z1: DIF. 5º | AA1: DIF. PRÓXIMO | AB1: OK | AD1: DIF. LIDER | AE1: DIF. 5º | AF1: DIF. PRÓXIMO | AG1: OK | AI1: DIF. LIDER | AJ1: DIF. 5º | AK1: DIF. PRÓXIMO | AL1: OK | AN1: DIF. LIDER | AO1: DIF. 5º | AP1: DIF. PRÓXIMO
D2: 1ª etapa | F2: 2ª etapa | H2: 3ª etapa | J2: 4ª etapa | L2: 5ª etapa | N2: 6ª etapa | P2: 7ª etapa | R2: 8ª etapa | W2: 9ª etapa | AB2: 10ª etapa | AG2: 11ª etapa | AL2: 12ª etapa
D3: 2024-02-22 | F3: 2024-03-14 | H3: 2024-03-21 | J3: 2024-04-04 | L3: 2024-05-09 | N3: 2024-06-13 | P3: 2024-07-11 | R3: 2024-08-08 | W3: 2024-09-12 | AB3: 2024-10-10 | AG3: 2024-11-21 | AL3: 2024-12-12
B4: Nome do (a) Piloto (a) | D4: PILOTO | E4: PONTOS | F4: PILOTO | G4: PONTOS | H4: PILOTO | I4: PONTOS | J4: PILOTO | K4: PONTOS | L4: PILOTO | M4: PONTOS | N4: PILOTO | O4: PONTOS | P4: PILOTO | Q4: PONTOS | R4: PILOTO | S4: PONTOS | W4: PILOTO | X4: PONTOS | AB4: PILOTO | AC4: PONTOS | AG4: PILOTO | AH4: PONTOS | AL4: PILOTO | AM4: PONTOS
A5: X | B5: Marcelo Mizrahy | C5: 1 | D5: Guilherme Janot | E5: 21 | F5: Guilherme Janot | G5: 26 | H5: Marcelo Mizrahy | I5: 34 | J5: Marcelo Mizrahy | K5: 42 | L5: Marcelo Mizrahy | M5: 55 | N5: Marcelo Mizrahy | O5: 68 | P5: Marcelo Mizrahy | Q5: 79 | R5: Marcelo Mizrahy | S5: 96 | T5: - | U5: - | V5: - | W5: Marcelo Mizrahy | X5: 116 | Y5: - | Z5: - | AA5: - | AB5: Marcelo Mizrahy | AC5: 133 | AD5: - | AE5: - | AF5: - | AG5: Marcelo Mizrahy | AH5: 143 | AI5: - | AJ5: - | AK5: - | AL5: Marcelo Mizrahy | AM5: 154 | AN5: - | AO5: - | AP5: -
A6: X | B6: Guilherme Janot | C6: 2 | D6: Alexandre Melillo | E6: 17 | F6: Marcelo Sant'anna | G6: 26 | H6: Guilherme Janot | I6: 31 | J6: Wilson Cristofani | K6: 28 | L6: Wilson Cristofani | M6: 48 | N6: Wilson Cristofani | O6: 56 | P6: Guilherme Janot | Q6: 71 | R6: Guilherme Janot | S6: 92 | T6: =S$5-S6 -> 4 | U6: - | V6: =S5-S6 -> 4 | W6: Guilherme Janot | X6: 109 | Y6: =X$5-X6 -> 7 | Z6: - | AA6: =X5-X6 -> 7 | AB6: Guilherme Janot | AC6: 119 | AD6: =AC$5-AC6 -> 14 | AE6: - | AF6: =AC5-AC6 -> 14 | AG6: Guilherme Janot | AH6: 120 | AI6: =AH$5-AH6 -> 23 | AJ6: - | AK6: =AH5-AH6 -> 23 | AL6: Guilherme Janot | AM6: 121 | AN6: =AM$5-AM6 -> 33 | AO6: - | AP6: =AM5-AM6 -> 33
A7: X | B7: Wilson Cristofani | C7: 3 | D7: Roberto Veloso | E7: 15 | F7: Marcelo Mizrahy | G7: 26 | H7: Marcelo Sant'anna | I7: 26 | J7: Carlos Sampaio | K7: 28 | L7: Guilherme Janot | M7: 39 | N7: Guilherme Janot | O7: 54 | P7: Wilson Cristofani | Q7: 64 | R7: Rodrigo Mercadante | S7: 69 | T7: =S$5-S7 -> 27 | U7: - | V7: =S6-S7 -> 23 | W7: Álvaro Paiva | X7: 76 | Y7: =X$5-X7 -> 40 | Z7: - | AA7: =X6-X7 -> 33 | AB7: Alexandre Melillo | AC7: 87 | AD7: =AC$5-AC7 -> 46 | AE7: - | AF7: =AC6-AC7 -> 32 | AG7: Wilson Cristofani | AH7: 101 | AI7: =AH$5-AH7 -> 42 | AJ7: - | AK7: =AH6-AH7 -> 19 | AL7: Wilson Cristofani | AM7: 114 | AN7: =AM$5-AM7 -> 40 | AO7: - | AP7: =AM6-AM7 -> 7
A8: X | B8: Álvaro Paiva | C8: 4 | D8: Marcelo Mizrahy | E8: 13 | F8: Alexandre Melillo | G8: 24 | H8: Alexandre Melillo | I8: 24 | J8: Marcelo Surerus | K8: 28 | L8: Alexandre Melillo | M8: 38 | N8: Marcelo Sant'anna | O8: 51 | P8: Rodrigo Mercadante | Q8: 61 | R8: Álvaro Paiva | S8: 66 | T8: =S$5-S8 -> 30 | U8: - | V8: =S7-S8 -> 3 | W8: Alexandre Melillo | X8: 76 | Y8: =X$5-X8 -> 40 | Z8: - | AA8: =X7-X8 -> 0 | AB8: Álvaro Paiva | AC8: 86 | AD8: =AC$5-AC8 -> 47 | AE8: - | AF8: =AC7-AC8 -> 1 | AG8: Alexandre Melillo | AH8: 94 | AI8: =AH$5-AH8 -> 49 | AJ8: - | AK8: =AH7-AH8 -> 7 | AL8: Álvaro Paiva | AM8: 110 | AN8: =AM$5-AM8 -> 44 | AO8: - | AP8: =AM7-AM8 -> 4
A9: X | B9: Eduardo Dias | C9: 5 | D9: Eduardo Dias | E9: 11 | F9: Roberto Veloso | G9: 21 | H9: Carlos Sampaio | I9: 24 | J9: Alexandre Melillo | K9: 25 | L9: Carlos Sampaio | M9: 35 | N9: Alexandre Melillo | O9: 51 | P9: Alexandre Melillo | Q9: 58 | R9: Wilson Cristofani | S9: 65 | T9: =S$5-S9 -> 31 | U9: - | V9: =S8-S9 -> 1 | W9: Rodrigo Mercadante | X9: 74 | Y9: =X$5-X9 -> 42 | Z9: - | AA9: =X8-X9 -> 2 | AB9: Wilson Cristofani | AC9: 80 | AD9: =AC$5-AC9 -> 53 | AE9: - | AF9: =AC8-AC9 -> 6 | AG9: Álvaro Paiva | AH9: 92 | AI9: =AH$5-AH9 -> 51 | AJ9: - | AK9: =AH8-AH9 -> 2 | AL9: Eduardo Dias | AM9: 108 | AN9: =AM$5-AM9 -> 46 | AO9: - | AP9: =AM8-AM9 -> 2
B10: Alexandre Melillo | C10: 6 | D10: Rodrigo Mercadante | E10: 10 | F10: Eduardo Dias | G10: 21 | H10: Euclides Almeida | I10: 21 | J10: Rodrigo Mercadante | K10: 25 | L10: Marcelo Surerus | M10: 33 | N10: Rodrigo Mercadante | O10: 48 | P10: Álvaro Paiva | Q10: 57 | R10: Alexandre Melillo | S10: 65 | T10: =S$5-S10 -> 31 | U10: =S$9-S10 -> 0 | V10: =S9-S10 -> 0 | W10: Wilson Cristofani | X10: 72 | Y10: =X$5-X10 -> 44 | Z10: =X$9-X10 -> 2 | AA10: =X9-X10 -> 2 | AB10: Rodrigo Mercadante | AC10: 74 | AD10: =AC$5-AC10 -> 59 | AE10: =AC$9-AC10 -> 6 | AF10: =AC9-AC10 -> 6 | AG10: Eduardo Dias | AH10: 88 | AI10: =AH$5-AH10 -> 55 | AJ10: =AH$9-AH10 -> 4 | AK10: =AH9-AH10 -> 4 | AL10: Alexandre Melillo | AM10: 104 | AN10: =AM$5-AM10 -> 50 | AO10: =AM$9-AM10 -> 4 | AP10: =AM9-AM10 -> 4
B11: Carlos Sampaio | C11: 7 | D11: Jarbas Reis | E11: 9 | F11: Jarbas Reis | G11: 18 | H11: Roberto Veloso | I11: 21 | J11: Guilherme Janot | K11: 22 | L11: Gijo | M11: 32 | N11: Carlos Sampaio | O11: 45 | P11: Marcelo Sant'anna | Q11: 56 | R11: Marcelo Sant'anna | S11: 60 | T11: =S$5-S11 -> 36 | U11: =S$9-S11 -> 5 | V11: =S10-S11 -> 5 | W11: Marcelo Sant'anna | X11: 60 | Y11: =X$5-X11 -> 56 | Z11: =X$9-X11 -> 14 | AA11: =X10-X11 -> 12 | AB11: Eduardo Dias | AC11: 71 | AD11: =AC$5-AC11 -> 62 | AE11: =AC$9-AC11 -> 9 | AF11: =AC10-AC11 -> 3 | AG11: Marcelo Surerus | AH11: 82 | AI11: =AH$5-AH11 -> 61 | AJ11: =AH$9-AH11 -> 10 | AK11: =AH10-AH11 -> 6 | AL11: Carlos Sampaio | AM11: 91 | AN11: =AM$5-AM11 -> 63 | AO11: =AM$9-AM11 -> 17 | AP11: =AM10-AM11 -> 13
B12: Marcelo Surerus | C12: 8 | D12: Wilson Cristofani | E12: 8 | F12: Euclides Almeida | G12: 17 | H12: Álvaro Paiva | I12: 21 | J12: Marcelo Sant'anna | K12: 22 | L12: Rodrigo Mercadante | M12: 31 | N12: Jarbas Reis | O12: 39 | P12: Carlos Sampaio | Q12: 52 | R12: Jarbas Reis | S12: 55 | T12: =S$5-S12 -> 41 | U12: =S$9-S12 -> 10 | V12: =S11-S12 -> 5 | W12: Carlos Sampaio | X12: 59 | Y12: =X$5-X12 -> 57 | Z12: =X$9-X12 -> 15 | AA12: =X11-X12 -> 1 | AB12: Marcelo Surerus | AC12: 69 | AD12: =AC$5-AC12 -> 64 | AE12: =AC$9-AC12 -> 11 | AF12: =AC11-AC12 -> 2 | AG12: Jarbas Reis | AH12: 78 | AI12: =AH$5-AH12 -> 65 | AJ12: =AH$9-AH12 -> 14 | AK12: =AH11-AH12 -> 4 | AL12: Marcelo Surerus | AM12: 89 | AN12: =AM$5-AM12 -> 65 | AO12: =AM$9-AM12 -> 19 | AP12: =AM11-AM12 -> 2
B13: Jarbas Reis | C13: 9 | D13: Carlos Sampaio | E13: 7 | F13: Marcelo Surerus | G13: 15 | H13: Eduardo Dias | I13: 21 | J13: Euclides Almeida | K13: 22 | L13: Álvaro Paiva | M13: 31 | N13: Álvaro Paiva | O13: 37 | P13: Jarbas Reis | Q13: 48 | R13: Gijo | S13: 54 | T13: =S$5-S13 -> 42 | U13: =S$9-S13 -> 11 | V13: =S12-S13 -> 1 | W13: Jarbas Reis | X13: 58 | Y13: =X$5-X13 -> 58 | Z13: =X$9-X13 -> 16 | AA13: =X12-X13 -> 1 | AB13: Jarbas Reis | AC13: 67 | AD13: =AC$5-AC13 -> 66 | AE13: =AC$9-AC13 -> 13 | AF13: =AC12-AC13 -> 2 | AG13: Carlos Sampaio | AH13: 76 | AI13: =AH$5-AH13 -> 67 | AJ13: =AH$9-AH13 -> 16 | AK13: =AH12-AH13 -> 2 | AL13: Jarbas Reis | AM13: 87 | AN13: =AM$5-AM13 -> 67 | AO13: =AM$9-AM13 -> 21 | AP13: =AM12-AM13 -> 2
B14: Euclides Almeida | C14: 10 | D14: Álvaro Paiva | E14: 6 | F14: Álvaro Paiva | G14: 14 | H14: Marcelo Surerus | I14: 20 | J14: Roberto Veloso | K14: 22 | L14: Marcelo Sant'anna | M14: 30 | N14: Gijo | O14: 36 | P14: Euclides Almeida | Q14: 44 | R14: Carlos Sampaio | S14: 53 | T14: =S$5-S14 -> 43 | U14: =S$9-S14 -> 12 | V14: =S13-S14 -> 1 | W14: Gijo | X14: 57 | Y14: =X$5-X14 -> 59 | Z14: =X$9-X14 -> 17 | AA14: =X13-X14 -> 1 | AB14: Carlos Sampaio | AC14: 66 | AD14: =AC$5-AC14 -> 67 | AE14: =AC$9-AC14 -> 14 | AF14: =AC13-AC14 -> 1 | AG14: Rodrigo Mercadante | AH14: 74 | AI14: =AH$5-AH14 -> 69 | AJ14: =AH$9-AH14 -> 18 | AK14: =AH13-AH14 -> 2 | AL14: Euclides Almeida | AM14: 77 | AN14: =AM$5-AM14 -> 77 | AO14: =AM$9-AM14 -> 31 | AP14: =AM13-AM14 -> 10
B15: Rodrigo Mercadante | C15: 11 | D15: Marcelo Sant'anna | E15: 5 | F15: Ivan Renault | G15: 13 | H15: Wilson Cristofani | I15: 19 | J15: Eduardo Dias | K15: 21 | L15: Jarbas Reis | M15: 30 | N15: Marcelo Surerus | O15: 36 | P15: Marcelo Surerus | Q15: 42 | R15: Euclides Almeida | S15: 48 | T15: =S$5-S15 -> 48 | U15: =S$9-S15 -> 17 | V15: =S14-S15 -> 5 | W15: Marcelo Surerus | X15: 56 | Y15: =X$5-X15 -> 60 | Z15: =X$9-X15 -> 18 | AA15: =X14-X15 -> 1 | AB15: Marcelo Sant'anna | AC15: 62 | AD15: =AC$5-AC15 -> 71 | AE15: =AC$9-AC15 -> 18 | AF15: =AC14-AC15 -> 4 | AG15: Euclides Almeida | AH15: 69 | AI15: =AH$5-AH15 -> 74 | AJ15: =AH$9-AH15 -> 23 | AK15: =AH14-AH15 -> 5 | AL15: Rodrigo Mercadante | AM15: 69 | AN15: =AM$5-AM15 -> 85 | AO15: =AM$9-AM15 -> 39 | AP15: =AM14-AM15 -> 8
B16: Marcelo Sant'anna | C16: 12 | D16: Marco Sant’anna | E16: 4 | F16: Rodrigo Mercadante | G16: 10 | H16: Jarbas Reis | I16: 18 | J16: Jarbas Reis | K16: 19 | L16: Roberto Veloso | M16: 28 | N16: Euclides Almeida | O16: 33 | P16: Gijo | Q16: 41 | R16: Carlos Eduardo | S16: 48 | T16: =S$5-S16 -> 48 | U16: =S$9-S16 -> 17 | V16: =S15-S16 -> 0 | W16: Eduardo Dias | X16: 55 | Y16: =X$5-X16 -> 61 | Z16: =X$9-X16 -> 19 | AA16: =X15-X16 -> 1 | AB16: Euclides Almeida | AC16: 54 | AD16: =AC$5-AC16 -> 79 | AE16: =AC$9-AC16 -> 26 | AF16: =AC15-AC16 -> 8 | AG16: Marcelo Sant'anna | AH16: 63 | AI16: =AH$5-AH16 -> 80 | AJ16: =AH$9-AH16 -> 29 | AK16: =AH15-AH16 -> 6 | AL16: Marcelo Sant'anna | AM16: 63 | AN16: =AM$5-AM16 -> 91 | AO16: =AM$9-AM16 -> 45 | AP16: =AM15-AM16 -> 6
B17: Gijo | C17: 13 | D17: Lucio Chequer | E17: 3 | F17: Carlos Sampaio | G17: 10 | H17: Rodrigo Mercadante | I17: 16 | J17: Carlos Eduardo | K17: 17 | L17: Euclides Almeida | M17: 26 | N17: Roberto Veloso | O17: 30 | P17: Carlos Eduardo | Q17: 38 | R17: Eduardo Dias | S17: 46 | T17: =S$5-S17 -> 50 | U17: =S$9-S17 -> 19 | V17: =S16-S17 -> 2 | W17: Euclides Almeida | X17: 53 | Y17: =X$5-X17 -> 63 | Z17: =X$9-X17 -> 21 | AA17: =X16-X17 -> 2 | AB17: Gijo | AC17: 52 | AD17: =AC$5-AC17 -> 81 | AE17: =AC$9-AC17 -> 28 | AF17: =AC16-AC17 -> 2 | AG17: Gijo | AH17: 47 | AI17: =AH$5-AH17 -> 96 | AJ17: =AH$9-AH17 -> 45 | AK17: =AH16-AH17 -> 16 | AL17: Gijo | AM17: 42 | AN17: =AM$5-AM17 -> 112 | AO17: =AM$9-AM17 -> 66 | AP17: =AM16-AM17 -> 21
B18: Carlos Eduardo | C18: 14 | D18: Ivan Renault | E18: 2 | F18: Wilson Cristofani | G18: 8 | H18: Gijo | I18: 14 | J18: Gijo | K18: 16 | L18: Ivan Renault | M18: 23 | N18: Ivan Renault | O18: 25 | P18: Roberto Veloso | Q18: 31 | R18: Marcelo Surerus | S18: 43 | T18: =S$5-S18 -> 53 | U18: =S$9-S18 -> 22 | V18: =S17-S18 -> 3 | W18: Carlos Eduardo | X18: 52 | Y18: =X$5-X18 -> 64 | Z18: =X$9-X18 -> 22 | AA18: =X17-X18 -> 1 | AB18: Carlos Eduardo | AC18: 52 | AD18: =AC$5-AC18 -> 81 | AE18: =AC$9-AC18 -> 28 | AF18: =AC17-AC18 -> 0 | AG18: Carlos Eduardo | AH18: 47 | AI18: =AH$5-AH18 -> 96 | AJ18: =AH$9-AH18 -> 45 | AK18: =AH17-AH18 -> 0 | AL18: Carlos Eduardo | AM18: 42 | AN18: =AM$5-AM18 -> 112 | AO18: =AM$9-AM18 -> 66 | AP18: =AM17-AM18 -> 0
B19: Lucio Chequer | C19: 15 | D19: Carlos Eduardo | E19: 0 | F19: Lucio Chequer | G19: 5 | H19: Ivan Renault | I19: 14 | J19: Álvaro Paiva | K19: 16 | L19: Eduardo Dias | M19: 22 | N19: Carlos Eduardo | O19: 23 | P19: Eduardo Dias | Q19: 31 | R19: Roberto Veloso | S19: 42 | T19: =S$5-S19 -> 54 | U19: =S$9-S19 -> 23 | V19: =S18-S19 -> 1 | W19: Roberto Veloso | X19: 42 | Y19: =X$5-X19 -> 74 | Z19: =X$9-X19 -> 32 | AA19: =X18-X19 -> 10 | AB19: Roberto Veloso | AC19: 37 | AD19: =AC$5-AC19 -> 96 | AE19: =AC$9-AC19 -> 43 | AF19: =AC18-AC19 -> 15 | AG19: Lucio Chequer | AH19: 37 | AI19: =AH$5-AH19 -> 106 | AJ19: =AH$9-AH19 -> 55 | AK19: =AH18-AH19 -> 10 | AL19: Lucio Chequer | AM19: 32 | AN19: =AM$5-AM19 -> 122 | AO19: =AM$9-AM19 -> 76 | AP19: =AM18-AM19 -> 10
B20: Marcelo Clemente | C20: 16 | D20: Claudio Junqueira | E20: 0 | F20: Carlos Eduardo | G20: 1 | H20: Carlos Eduardo | I20: 9 | J20: Ivan Renault | K20: 14 | L20: Carlos Eduardo | M20: 22 | N20: Eduardo Dias | O20: 22 | P20: Ivan Renault | Q20: 27 | R20: Ivan Renault | S20: 27 | T20: =S$5-S20 -> 69 | U20: =S$9-S20 -> 38 | V20: =S19-S20 -> 15 | W20: Lucio Chequer | X20: 35 | Y20: =X$5-X20 -> 81 | Z20: =X$9-X20 -> 39 | AA20: =X19-X20 -> 7 | AB20: Lucio Chequer | AC20: 36 | AD20: =AC$5-AC20 -> 97 | AE20: =AC$9-AC20 -> 44 | AF20: =AC19-AC20 -> 1 | AG20: Marcelo Clemente | AH20: 33 | AI20: =AH$5-AH20 -> 110 | AJ20: =AH$9-AH20 -> 59 | AK20: =AH19-AH20 -> 4 | AL20: Marcelo Clemente | AM20: 28 | AN20: =AM$5-AM20 -> 126 | AO20: =AM$9-AM20 -> 80 | AP20: =AM19-AM20 -> 4
B21: Roberto Veloso | C21: 17 | D21: Euclides Almeida | E21: 0 | F21: Gijo | G21: 0 | H21: Lucio Chequer | I21: 5 | J21: Lucio Chequer | K21: 5 | L21: Lucio Chequer | M21: 9 | N21: Lucio Chequer | O21: 15 | P21: Lucio Chequer | Q21: 17 | R21: Lucio Chequer | S21: 22 | T21: =S$5-S21 -> 74 | U21: =S$9-S21 -> 43 | V21: =S20-S21 -> 5 | W21: Ivan Renault | X21: 27 | Y21: =X$5-X21 -> 89 | Z21: =X$9-X21 -> 47 | AA21: =X20-X21 -> 8 | AB21: Ivan Renault | AC21: 27 | AD21: =AC$5-AC21 -> 106 | AE21: =AC$9-AC21 -> 53 | AF21: =AC20-AC21 -> 9 | AG21: Roberto Veloso | AH21: 32 | AI21: =AH$5-AH21 -> 111 | AJ21: =AH$9-AH21 -> 60 | AK21: =AH20-AH21 -> 1 | AL21: Roberto Veloso | AM21: 27 | AN21: =AM$5-AM21 -> 127 | AO21: =AM$9-AM21 -> 81 | AP21: =AM20-AM21 -> 1
B22: Ivan Renault | C22: 18 | D22: Gijo | E22: 0 | F22: Marco Sant’anna | G22: 0 | H22: Marco Sant’anna | I22: 0 | J22: Marco Sant’anna | K22: 0 | L22: Marco Sant’anna | M22: 0 | N22: Marco Sant’anna | O22: 0 | P22: Marcelo Clemente | Q22: 0 | R22: Marcelo Clemente | S22: 0 | T22: =S$5-S22 -> 96 | U22: =S$9-S22 -> 65 | V22: =S21-S22 -> 22 | W22: Marcelo Clemente | X22: 4 | Y22: =X$5-X22 -> 112 | Z22: =X$9-X22 -> 70 | AA22: =X21-X22 -> 23 | AB22: Marcelo Clemente | AC22: 24 | AD22: =AC$5-AC22 -> 109 | AE22: =AC$9-AC22 -> 56 | AF22: =AC21-AC22 -> 3 | AG22: Ivan Renault | AH22: 27 | AI22: =AH$5-AH22 -> 116 | AJ22: =AH$9-AH22 -> 65 | AK22: =AH21-AH22 -> 5 | AL22: Ivan Renault | AM22: 27 | AN22: =AM$5-AM22 -> 127 | AO22: =AM$9-AM22 -> 81 | AP22: =AM21-AM22 -> 0
B23: Marco Sant’anna | C23: 19 | D23: Marcelo Clemente | E23: 0 | F23: Claudio Junqueira | G23: 0 | H23: Claudio Junqueira | I23: 0 | J23: Claudio Junqueira | K23: 0 | L23: Claudio Junqueira | M23: 0 | N23: Claudio Junqueira | O23: 0 | P23: Marco Sant’anna | Q23: 0 | R23: Marco Sant’anna | S23: 0 | T23: =S$5-S23 -> 96 | U23: =S$9-S23 -> 65 | V23: =S22-S23 -> 0 | W23: Marco Sant’anna | X23: 0 | Y23: =X$5-X23 -> 116 | Z23: =X$9-X23 -> 74 | AA23: =X22-X23 -> 4 | AB23: Marco Sant’anna | AC23: 0 | AD23: =AC$5-AC23 -> 133 | AE23: =AC$9-AC23 -> 80 | AF23: =AC22-AC23 -> 24 | AG23: Marco Sant’anna | AH23: 0 | AI23: =AH$5-AH23 -> 143 | AJ23: =AH$9-AH23 -> 92 | AK23: =AH22-AH23 -> 27 | AL23: Marco Sant’anna | AM23: 0 | AN23: =AM$5-AM23 -> 154 | AO23: =AM$9-AM23 -> 108 | AP23: =AM22-AM23 -> 27
B24: Claudio Junqueira | C24: 20 | D24: Marcelo Surerus | E24: 0 | F24: Marcelo Clemente | G24: 0 | H24: Marcelo Clemente | I24: 0 | J24: Marcelo Clemente | K24: 0 | L24: Marcelo Clemente | M24: 0 | N24: Marcelo Clemente | O24: 0 | P24: Claudio Junqueira | Q24: 0 | R24: Claudio Junqueira | S24: 0 | T24: =S$5-S24 -> 96 | U24: =S$9-S24 -> 65 | V24: =S23-S24 -> 0 | W24: Claudio Junqueira | X24: 0 | Y24: =X$5-X24 -> 116 | Z24: =X$9-X24 -> 74 | AA24: =X23-X24 -> 0 | AB24: Claudio Junqueira | AC24: 0 | AD24: =AC$5-AC24 -> 133 | AE24: =AC$9-AC24 -> 80 | AF24: =AC23-AC24 -> 0 | AG24: Claudio Junqueira | AH24: 0 | AI24: =AH$5-AH24 -> 143 | AJ24: =AH$9-AH24 -> 92 | AK24: =AH23-AH24 -> 0 | AL24: Claudio Junqueira | AM24: 0 | AN24: =AM$5-AM24 -> 154 | AO24: =AM$9-AM24 -> 108 | AP24: =AM23-AM24 -> 0
C25: 21 | T25: =S$5-S25 -> 96 | U25: =S$9-S25 -> 65 | V25: =S24-S25 -> 0 | Y25: =X$5-X25 -> 116 | Z25: =X$9-X25 -> 74 | AA25: =X24-X25 -> 0 | AD25: =AC$5-AC25 -> 133 | AE25: =AC$9-AC25 -> 80 | AF25: =AC24-AC25 -> 0 | AI25: =AH$5-AH25 -> 143 | AJ25: =AH$9-AH25 -> 92 | AK25: =AH24-AH25 -> 0 | AN25: =AM$5-AM25 -> 154 | AO25: =AM$9-AM25 -> 108 | AP25: =AM24-AM25 -> 0
C26: 22 | T26: =S$5-S26 -> 96 | U26: =S$9-S26 -> 65 | V26: =S25-S26 -> 0 | Y26: =X$5-X26 -> 116 | Z26: =X$9-X26 -> 74 | AA26: =X25-X26 -> 0 | AD26: =AC$5-AC26 -> 133 | AE26: =AC$9-AC26 -> 80 | AF26: =AC25-AC26 -> 0 | AI26: =AH$5-AH26 -> 143 | AJ26: =AH$9-AH26 -> 92 | AK26: =AH25-AH26 -> 0 | AN26: =AM$5-AM26 -> 154 | AO26: =AM$9-AM26 -> 108 | AP26: =AM25-AM26 -> 0
C27: 23 | T27: =S$5-S27 -> 96 | U27: =S$9-S27 -> 65 | V27: =S26-S27 -> 0 | Y27: =X$5-X27 -> 116 | Z27: =X$9-X27 -> 74 | AA27: =X26-X27 -> 0 | AD27: =AC$5-AC27 -> 133 | AE27: =AC$9-AC27 -> 80 | AF27: =AC26-AC27 -> 0 | AI27: =AH$5-AH27 -> 143 | AJ27: =AH$9-AH27 -> 92 | AK27: =AH26-AH27 -> 0 | AN27: =AM$5-AM27 -> 154 | AO27: =AM$9-AM27 -> 108 | AP27: =AM26-AM27 -> 0
C28: 24 | T28: =S$5-S28 -> 96 | U28: =S$9-S28 -> 65 | V28: =S27-S28 -> 0 | Y28: =X$5-X28 -> 116 | Z28: =X$9-X28 -> 74 | AA28: =X27-X28 -> 0 | AD28: =AC$5-AC28 -> 133 | AE28: =AC$9-AC28 -> 80 | AF28: =AC27-AC28 -> 0 | AI28: =AH$5-AH28 -> 143 | AJ28: =AH$9-AH28 -> 92 | AK28: =AH27-AH28 -> 0 | AN28: =AM$5-AM28 -> 154 | AO28: =AM$9-AM28 -> 108 | AP28: =AM27-AM28 -> 0
C29: 25 | T29: =S$5-S29 -> 96 | U29: =S$9-S29 -> 65 | V29: =S28-S29 -> 0 | Y29: =X$5-X29 -> 116 | Z29: =X$9-X29 -> 74 | AA29: =X28-X29 -> 0 | AD29: =AC$5-AC29 -> 133 | AE29: =AC$9-AC29 -> 80 | AF29: =AC28-AC29 -> 0 | AI29: =AH$5-AH29 -> 143 | AJ29: =AH$9-AH29 -> 92 | AK29: =AH28-AH29 -> 0 | AN29: =AM$5-AM29 -> 154 | AO29: =AM$9-AM29 -> 108 | AP29: =AM28-AM29 -> 0
C30: 26 | T30: =S$5-S30 -> 96 | U30: =S$9-S30 -> 65 | V30: =S29-S30 -> 0 | Y30: =X$5-X30 -> 116 | Z30: =X$9-X30 -> 74 | AA30: =X29-X30 -> 0 | AD30: =AC$5-AC30 -> 133 | AE30: =AC$9-AC30 -> 80 | AF30: =AC29-AC30 -> 0 | AI30: =AH$5-AH30 -> 143 | AJ30: =AH$9-AH30 -> 92 | AK30: =AH29-AH30 -> 0 | AN30: =AM$5-AM30 -> 154 | AO30: =AM$9-AM30 -> 108 | AP30: =AM29-AM30 -> 0
C31: 27 | T31: =S$5-S31 -> 96 | U31: =S$9-S31 -> 65 | V31: =S30-S31 -> 0 | Y31: =X$5-X31 -> 116 | Z31: =X$9-X31 -> 74 | AA31: =X30-X31 -> 0 | AD31: =AC$5-AC31 -> 133 | AE31: =AC$9-AC31 -> 80 | AF31: =AC30-AC31 -> 0 | AI31: =AH$5-AH31 -> 143 | AJ31: =AH$9-AH31 -> 92 | AK31: =AH30-AH31 -> 0 | AN31: =AM$5-AM31 -> 154 | AO31: =AM$9-AM31 -> 108 | AP31: =AM30-AM31 -> 0
C32: 28 | T32: =S$5-S32 -> 96 | U32: =S$9-S32 -> 65 | V32: =S31-S32 -> 0 | Y32: =X$5-X32 -> 116 | Z32: =X$9-X32 -> 74 | AA32: =X31-X32 -> 0 | AD32: =AC$5-AC32 -> 133 | AE32: =AC$9-AC32 -> 80 | AF32: =AC31-AC32 -> 0 | AI32: =AH$5-AH32 -> 143 | AJ32: =AH$9-AH32 -> 92 | AK32: =AH31-AH32 -> 0 | AN32: =AM$5-AM32 -> 154 | AO32: =AM$9-AM32 -> 108 | AP32: =AM31-AM32 -> 0
C33: 29 | T33: =S$5-S33 -> 96 | U33: =S$9-S33 -> 65 | V33: =S32-S33 -> 0 | Y33: =X$5-X33 -> 116 | Z33: =X$9-X33 -> 74 | AA33: =X32-X33 -> 0 | AD33: =AC$5-AC33 -> 133 | AE33: =AC$9-AC33 -> 80 | AF33: =AC32-AC33 -> 0 | AI33: =AH$5-AH33 -> 143 | AJ33: =AH$9-AH33 -> 92 | AK33: =AH32-AH33 -> 0 | AN33: =AM$5-AM33 -> 154 | AO33: =AM$9-AM33 -> 108 | AP33: =AM32-AM33 -> 0
C34: 30 | T34: =S$5-S34 -> 96 | U34: =S$9-S34 -> 65 | V34: =S33-S34 -> 0 | Y34: =X$5-X34 -> 116 | Z34: =X$9-X34 -> 74 | AA34: =X33-X34 -> 0 | AD34: =AC$5-AC34 -> 133 | AE34: =AC$9-AC34 -> 80 | AF34: =AC33-AC34 -> 0 | AI34: =AH$5-AH34 -> 143 | AJ34: =AH$9-AH34 -> 92 | AK34: =AH33-AH34 -> 0 | AN34: =AM$5-AM34 -> 154 | AO34: =AM$9-AM34 -> 108 | AP34: =AM33-AM34 -> 0
C35: 31 | T35: =S$5-S35 -> 96 | U35: =S$9-S35 -> 65 | V35: =S34-S35 -> 0 | Y35: =X$5-X35 -> 116 | Z35: =X$9-X35 -> 74 | AA35: =X34-X35 -> 0 | AD35: =AC$5-AC35 -> 133 | AE35: =AC$9-AC35 -> 80 | AF35: =AC34-AC35 -> 0 | AI35: =AH$5-AH35 -> 143 | AJ35: =AH$9-AH35 -> 92 | AK35: =AH34-AH35 -> 0 | AN35: =AM$5-AM35 -> 154 | AO35: =AM$9-AM35 -> 108 | AP35: =AM34-AM35 -> 0
C36: 32 | T36: =S$5-S36 -> 96 | U36: =S$9-S36 -> 65 | V36: =S35-S36 -> 0 | Y36: =X$5-X36 -> 116 | Z36: =X$9-X36 -> 74 | AA36: =X35-X36 -> 0 | AD36: =AC$5-AC36 -> 133 | AE36: =AC$9-AC36 -> 80 | AF36: =AC35-AC36 -> 0 | AI36: =AH$5-AH36 -> 143 | AJ36: =AH$9-AH36 -> 92 | AK36: =AH35-AH36 -> 0 | AN36: =AM$5-AM36 -> 154 | AO36: =AM$9-AM36 -> 108 | AP36: =AM35-AM36 -> 0
C37: 33 | T37: =S$5-S37 -> 96 | U37: =S$9-S37 -> 65 | V37: =S36-S37 -> 0 | Y37: =X$5-X37 -> 116 | Z37: =X$9-X37 -> 74 | AA37: =X36-X37 -> 0 | AD37: =AC$5-AC37 -> 133 | AE37: =AC$9-AC37 -> 80 | AF37: =AC36-AC37 -> 0 | AI37: =AH$5-AH37 -> 143 | AJ37: =AH$9-AH37 -> 92 | AK37: =AH36-AH37 -> 0 | AN37: =AM$5-AM37 -> 154 | AO37: =AM$9-AM37 -> 108 | AP37: =AM36-AM37 -> 0
C38: 34 | T38: =S$5-S38 -> 96 | U38: =S$9-S38 -> 65 | V38: =S37-S38 -> 0 | Y38: =X$5-X38 -> 116 | Z38: =X$9-X38 -> 74 | AA38: =X37-X38 -> 0 | AD38: =AC$5-AC38 -> 133 | AE38: =AC$9-AC38 -> 80 | AF38: =AC37-AC38 -> 0 | AI38: =AH$5-AH38 -> 143 | AJ38: =AH$9-AH38 -> 92 | AK38: =AH37-AH38 -> 0 | AN38: =AM$5-AM38 -> 154 | AO38: =AM$9-AM38 -> 108 | AP38: =AM37-AM38 -> 0
C39: 35 | T39: =S$5-S39 -> 96 | U39: =S$9-S39 -> 65 | V39: =S38-S39 -> 0 | Y39: =X$5-X39 -> 116 | Z39: =X$9-X39 -> 74 | AA39: =X38-X39 -> 0 | AD39: =AC$5-AC39 -> 133 | AE39: =AC$9-AC39 -> 80 | AF39: =AC38-AC39 -> 0 | AI39: =AH$5-AH39 -> 143 | AJ39: =AH$9-AH39 -> 92 | AK39: =AH38-AH39 -> 0 | AN39: =AM$5-AM39 -> 154 | AO39: =AM$9-AM39 -> 108 | AP39: =AM38-AM39 -> 0
C40: 36 | T40: =S$5-S40 -> 96 | U40: =S$9-S40 -> 65 | V40: =S39-S40 -> 0 | Y40: =X$5-X40 -> 116 | Z40: =X$9-X40 -> 74 | AA40: =X39-X40 -> 0 | AD40: =AC$5-AC40 -> 133 | AE40: =AC$9-AC40 -> 80 | AF40: =AC39-AC40 -> 0 | AI40: =AH$5-AH40 -> 143 | AJ40: =AH$9-AH40 -> 92 | AK40: =AH39-AH40 -> 0 | AN40: =AM$5-AM40 -> 154 | AO40: =AM$9-AM40 -> 108 | AP40: =AM39-AM40 -> 0
C41: 37 | T41: =S$5-S41 -> 96 | U41: =S$9-S41 -> 65 | V41: =S40-S41 -> 0 | Y41: =X$5-X41 -> 116 | Z41: =X$9-X41 -> 74 | AA41: =X40-X41 -> 0 | AD41: =AC$5-AC41 -> 133 | AE41: =AC$9-AC41 -> 80 | AF41: =AC40-AC41 -> 0 | AI41: =AH$5-AH41 -> 143 | AJ41: =AH$9-AH41 -> 92 | AK41: =AH40-AH41 -> 0 | AN41: =AM$5-AM41 -> 154 | AO41: =AM$9-AM41 -> 108 | AP41: =AM40-AM41 -> 0
C42: 38 | T42: =S$5-S42 -> 96 | U42: =S$9-S42 -> 65 | V42: =S41-S42 -> 0 | Y42: =X$5-X42 -> 116 | Z42: =X$9-X42 -> 74 | AA42: =X41-X42 -> 0 | AD42: =AC$5-AC42 -> 133 | AE42: =AC$9-AC42 -> 80 | AF42: =AC41-AC42 -> 0 | AI42: =AH$5-AH42 -> 143 | AJ42: =AH$9-AH42 -> 92 | AK42: =AH41-AH42 -> 0 | AN42: =AM$5-AM42 -> 154 | AO42: =AM$9-AM42 -> 108 | AP42: =AM41-AM42 -> 0
C43: 39 | T43: =S$5-S43 -> 96 | U43: =S$9-S43 -> 65 | V43: =S42-S43 -> 0 | Y43: =X$5-X43 -> 116 | Z43: =X$9-X43 -> 74 | AA43: =X42-X43 -> 0 | AC43: 0 | AD43: =AC$5-AC43 -> 133 | AE43: =AC$9-AC43 -> 80 | AF43: =AC42-AC43 -> 0 | AI43: =AH$5-AH43 -> 143 | AJ43: =AH$9-AH43 -> 92 | AK43: =AH42-AH43 -> 0 | AN43: =AM$5-AM43 -> 154 | AO43: =AM$9-AM43 -> 108 | AP43: =AM42-AM43 -> 0
C44: 40 | T44: =S$5-S44 -> 96 | U44: =S$9-S44 -> 65 | V44: =S43-S44 -> 0 | Y44: =X$5-X44 -> 116 | Z44: =X$9-X44 -> 74 | AA44: =X43-X44 -> 0 | AC44: 0 | AD44: =AC$5-AC44 -> 133 | AE44: =AC$9-AC44 -> 80 | AF44: =AC43-AC44 -> 0 | AI44: =AH$5-AH44 -> 143 | AJ44: =AH$9-AH44 -> 92 | AK44: =AH43-AH44 -> 0 | AN44: =AM$5-AM44 -> 154 | AO44: =AM$9-AM44 -> 108 | AP44: =AM43-AM44 -> 0
C45: 41 | T45: =S$5-S45 -> 96 | U45: =S$9-S45 -> 65 | V45: =S44-S45 -> 0 | Y45: =X$5-X45 -> 116 | Z45: =X$9-X45 -> 74 | AA45: =X44-X45 -> 0 | AC45: 0 | AD45: =AC$5-AC45 -> 133 | AE45: =AC$9-AC45 -> 80 | AF45: =AC44-AC45 -> 0 | AI45: =AH$5-AH45 -> 143 | AJ45: =AH$9-AH45 -> 92 | AK45: =AH44-AH45 -> 0 | AN45: =AM$5-AM45 -> 154 | AO45: =AM$9-AM45 -> 108 | AP45: =AM44-AM45 -> 0
C46: 42 | T46: =S$5-S46 -> 96 | U46: =S$9-S46 -> 65 | V46: =S45-S46 -> 0 | Y46: =X$5-X46 -> 116 | Z46: =X$9-X46 -> 74 | AA46: =X45-X46 -> 0 | AC46: 0 | AD46: =AC$5-AC46 -> 133 | AE46: =AC$9-AC46 -> 80 | AF46: =AC45-AC46 -> 0 | AI46: =AH$5-AH46 -> 143 | AJ46: =AH$9-AH46 -> 92 | AK46: =AH45-AH46 -> 0 | AN46: =AM$5-AM46 -> 154 | AO46: =AM$9-AM46 -> 108 | AP46: =AM45-AM46 -> 0
C47: 43 | T47: =S$5-S47 -> 96 | U47: =S$9-S47 -> 65 | V47: =S46-S47 -> 0 | Y47: =X$5-X47 -> 116 | Z47: =X$9-X47 -> 74 | AA47: =X46-X47 -> 0 | AC47: 0 | AD47: =AC$5-AC47 -> 133 | AE47: =AC$9-AC47 -> 80 | AF47: =AC46-AC47 -> 0 | AI47: =AH$5-AH47 -> 143 | AJ47: =AH$9-AH47 -> 92 | AK47: =AH46-AH47 -> 0 | AN47: =AM$5-AM47 -> 154 | AO47: =AM$9-AM47 -> 108 | AP47: =AM46-AM47 -> 0
C48: 44 | T48: =S$5-S48 -> 96 | U48: =S$9-S48 -> 65 | V48: =S47-S48 -> 0 | Y48: =X$5-X48 -> 116 | Z48: =X$9-X48 -> 74 | AA48: =X47-X48 -> 0 | AC48: 0 | AD48: =AC$5-AC48 -> 133 | AE48: =AC$9-AC48 -> 80 | AF48: =AC47-AC48 -> 0 | AI48: =AH$5-AH48 -> 143 | AJ48: =AH$9-AH48 -> 92 | AK48: =AH47-AH48 -> 0 | AN48: =AM$5-AM48 -> 154 | AO48: =AM$9-AM48 -> 108 | AP48: =AM47-AM48 -> 0
C49: 45 | T49: =S$5-S49 -> 96 | U49: =S$9-S49 -> 65 | V49: =S48-S49 -> 0 | Y49: =X$5-X49 -> 116 | Z49: =X$9-X49 -> 74 | AA49: =X48-X49 -> 0 | AC49: 0 | AD49: =AC$5-AC49 -> 133 | AE49: =AC$9-AC49 -> 80 | AF49: =AC48-AC49 -> 0 | AI49: =AH$5-AH49 -> 143 | AJ49: =AH$9-AH49 -> 92 | AK49: =AH48-AH49 -> 0 | AN49: =AM$5-AM49 -> 154 | AO49: =AM$9-AM49 -> 108 | AP49: =AM48-AM49 -> 0

Sheet TROCA KART
A1: PILOTO | B1: 1 ETAPA | C1: 2 ETAPA | D1: 3 ETAPA | E1: 4 ETAPA | F1: 5 ETAPA | G1: 6 ETAPA | H1: 7 ETAPA | I1: 8 ETAPA | J1: 9 ETAPA | K1: 10 ETAPA | L1: 11 ETAPA | M1: 12 ETAPA | N1: Troca
A2: Alexandre Melillo | I2: TROCA | N2: 1
A3: Álvaro Paiva | M3: TROCA | N3: 1
A4: Carlos Eduardo | N4: 0
A5: Carlos Sampaio | N5: 0
A6: Claudio Junqueira | N6: 0
A7: Eduardo Dias | B7: TROCA | N7: 1
A8: Euclides Almeida | N8: 0
A9: Gijo | N9: 0
A10: Guilherme Janot | N10: 0
A11: Ivan Renault | N11: 0
A12: Jarbas Reis | H12: TROCA | N12: 1
A13: Lucio Chequer | N13: 0
A14: Marcelo Clemente | H14: TROCA | N14: 1
A15: Marcelo Mizrahy | N15: 0
A16: Marcelo Sant'anna | N16: 0
A17: Marcelo Surerus | N17: 0
A18: Marco Sant’anna | N18: 0
A19: Roberto Veloso | N19: 0
A20: Rodrigo Mercadante | D20: TROCA | N20: 1
A21: Wilson Cristofani | N21: 0
A22: 0 | N22: 0
A23: 0 | N23: 0
A24: 0 | N24: 0
A25: 0 | N25: 0
A26: 0 | N26: 0
A27: 0 | N27: 0
A28: 0 | N28: 0
A29: 0 | N29: 0
A30: 0 | N30: 0
A31: 0 | N31: 0
A32: 0 | N32: 0
A33: 0 | N33: 0
A34: 0 | N34: 0
A35: 0 | N35: 0
A36: 0 | N36: 0
A37: 0 | N37: 0
A38: 0 | N38: 0
A39: 0 | N39: 0
N40: 0
N41: 0
N42: 0
N43: 0
N44: 0
N45: 0
N46: 0

Sheet PRESENÇAS
A1: PILOTO | B1: 1 ETAPA | C1: 2 ETAPA | D1: 3 ETAPA | E1: 4 ETAPA | F1: 5 ETAPA | G1: 6 ETAPA | H1: 7 ETAPA | I1: 8 ETAPA | J1: 9 ETAPA | K1: 10 ETAPA | L1: 11 ETAPA | M1: 12 ETAPA | N1: Faltou | O1: PUNIÇÕES
A2: Alexandre Melillo | B2: ok | C2: ok | D2: ok | E2: ok | F2: ok | G2: ok | H2: ok | I2: ok | J2: ok | K2: ok | L2: ok | M2: ok | N2: 0 | O2: 0
A3: Álvaro Paiva | B3: ok | C3: ok | D3: ok | E3: ok | F3: ok | G3: ok | H3: ok | I3: ok | J3: ok | K3: ok | L3: ok | M3: ok | N3: 0 | O3: 0 | Q3: FALTAS: 08 PUNIÇÕES: 00
A4: Carlos Eduardo | B4: Faltou | C4: ok | D4: ok | E4: ok | F4: ok | G4: Faltou | H4: ok | I4: ok | J4: ok | K4: Faltou | L4: Faltou | M4: Faltou | N4: 5 | O4: 0
A5: Carlos Sampaio | B5: ok | C5: ok | D5: ok | E5: ok | F5: ok | G5: ok | H5: ok | I5: ok | J5: ok | K5: ok | L5: ok | M5: ok | N5: 0 | O5: 1
A6: Claudio Junqueira | B6: Faltou | C6: Faltou | D6: Faltou | E6: Faltou | F6: Faltou | G6: Faltou | H6: Faltou | I6: Faltou | J6: Faltou | K6: Faltou | L6: Faltou | M6: Faltou | N6: 12 | O6: 0
A7: Eduardo Dias | B7: ok | C7: ok | D7: ok | E7: ok | F7: ok | G7: ok | H7: ok | I7: ok | J7: ok | K7: ok | L7: ok | M7: ok | N7: 0 | O7: 2
A8: Euclides Almeida | B8: Faltou | C8: ok | D8: ok | E8: ok | F8: Faltou | G8: ok | H8: ok | I8: ok | J8: ok | K8: ok | L8: ok | M8: ok | N8: 2 | O8: 1
A9: Gijo | B9: Faltou | C9: ok | D9: ok | E9: ok | F9: ok | G9: Faltou | H9: ok | I9: ok | J9: ok | K9: Faltou | L9: Faltou | M9: Faltou | N9: 5 | O9: 0
A10: Guilherme Janot | B10: ok | C10: ok | D10: ok | E10: ok | F10: ok | G10: ok | H10: ok | I10: ok | J10: ok | K10: Faltou | L10: ok | M10: ok | N10: 1 | O10: 3
A11: Ivan Renault | B11: ok | C11: ok | D11: ok | E11: ok | F11: ok | G11: Faltou | H11: Faltou | I11: Faltou | J11: Faltou | K11: Faltou | L11: Faltou | M11: Faltou | N11: 7 | O11: 0
A12: Jarbas Reis | B12: ok | C12: ok | D12: ok | E12: ok | F12: ok | G12: ok | H12: ok | I12: ok | J12: Faltou | K12: ok | L12: ok | M12: ok | N12: 1 | O12: 0
A13: Lucio Chequer | B13: ok | C13: ok | D13: ok | E13: Faltou | F13: ok | G13: ok | H13: ok | I13: ok | J13: ok | K13: Faltou | L13: ok | M13: Faltou | N13: 3 | O13: 1
A14: Marcelo Clemente | B14: Faltou | C14: Faltou | D14: Faltou | E14: Faltou | F14: Faltou | G14: Faltou | H14: ok | I14: Faltou | J14: ok | K14: ok | L14: ok | M14: Faltou | N14: 8 | O14: 0
A15: Marcelo Mizrahy | B15: ok | C15: ok | D15: ok | E15: ok | F15: ok | G15: ok | H15: ok | I15: ok | J15: ok | K15: ok | L15: ok | M15: ok | N15: 0 | O15: 0
A16: Marcelo Sant'anna | B16: ok | C16: ok | D16: ok | E16: ok | F16: ok | G16: ok | H16: ok | I16: ok | J16: ok | K16: Faltou | L16: Faltou | M16: Faltou | N16: 3 | O16: 2
A17: Marcelo Surerus | B17: Faltou | C17: ok | D17: ok | E17: ok | F17: ok | G17: Faltou | H17: ok | I17: ok | J17: ok | K17: ok | L17: ok | M17: ok | N17: 2 | O17: 0
A18: Marco Sant’anna | B18: ok | C18: Faltou | D18: Faltou | E18: Faltou | F18: Faltou | G18: Faltou | H18: Faltou | I18: Faltou | J18: ok | K18: Faltou | L18: Faltou | M18: ok | N18: 9 | O18: 0
A19: Roberto Veloso | B19: ok | C19: ok | D19: ok | E19: ok | F19: ok | G19: Faltou | H19: Faltou | I19: ok | J19: Faltou | K19: Faltou | L19: Faltou | M19: Faltou | N19: 6 | O19: 0
A20: Rodrigo Mercadante | B20: ok | C20: Faltou | D20: ok | E20: ok | F20: Faltou | G20: ok | H20: ok | I20: ok | J20: ok | K20: Faltou | L20: Faltou | M20: Faltou | N20: 5 | O20: 0
A21: Wilson Cristofani | B21: ok | C21: Faltou | D21: ok | E21: ok | F21: ok | G21: ok | H21: ok | I21: Faltou | J21: ok | K21: ok | L21: ok | M21: ok | N21: 2 | O21: 0
N22: 0 | O22: 0
N23: 0 | O23: 0
N24: 0 | O24: 0
N25: 0 | O25: 0
N26: 0 | O26: 0
N27: 0 | O27: 0
N28: 0 | O28: 0
N29: 0 | O29: 0
N30: 0 | O30: 0
N31: 0 | O31: 0
N32: 0 | O32: 0
N33: 0 | O33: 0
N34: 0 | O34: 0
N35: 0 | O35: 0
N36: 0 | O36: 0
N37: 0 | O37: 0
N38: 0 | O38: 0
N39: 0 | O39: 0
N40: 0 | O40: 0
N41: 0 | O41: 0
N42: 0 | O42: 0
N43: 0 | O43: 0
N44: 0 | O44: 0
N45: 0 | O45: 0
N46: 0.2958333333

Sheet TABELA
A1: 2024 | E1: OK | I1: OK | M1: OK | Q1: OK | U1: OK | Y1: OK | AC1: OK | AG1: OK | AK1: OK | AO1: OK | AS1: OK | AW1: OK
D2: 1ª etapa | H2: 2ª etapa | L2: 3ª etapa | P2: 4ª etapa | T2: 5ª etapa | X2: 6ª etapa | AB2: 7ª etapa | AF2: 8ª etapa | AJ2: 9ª etapa | AN2: 10ª etapa | AR2: 11ª etapa | AV2: 12ª etapa
D3: 2024-02-22 | H3: 2024-03-14 | L3: 2024-03-21 | P3: 2024-04-04 | T3: 2024-05-09 | X3: 2024-06-13 | AB3: 2024-07-11 | AF3: 2024-08-08 | AJ3: 2024-09-12 | AN3: 2024-10-10 | AR3: 2024-11-21 | AV3: 2024-12-12
B4: Nome do (a) Piloto (a) | C4: Pontuação Geral | D4: Posição | E4: Pontos | F4: Bônus | G4: Penalidade | H4: Posição | I4: Pontos | J4: Bônus | K4: Penalidade | L4: Posição | M4: Pontos | N4: Bônus | O4: Penalidade | P4: Posição | Q4: Pontos | R4: Bônus | S4: Penalidade | T4: Posição | U4: Pontos | V4: Bônus | W4: Penalidade | X4: Posição | Y4: Pontos | Z4: Bônus | AA4: Penalidade | AB4: Posição | AC4: Pontos | AD4: Bônus | AE4: Penalidade | AF4: Posição | AG4: Pontos | AH4: Bônus | AI4: Penalidade | AJ4: Posição | AK4: Pontos | AL4: Bônus | AM4: Penalidade | AN4: Posição | AO4: Pontos | AP4: Bônus | AQ4: Penalidade | AR4: Posição | AS4: Pontos | AT4: Bônus | AU4: Penalidade | AV4: Posição | AW4: Pontos | AX4: Bônus | AY4: Penalidade | AZ4: 1º LUGAR | BA4: 2º LUGAR | BB4: 3º LUGAR | BC4: 4º LUGAR | BD4: 5º LUGAR | BE4: 6º LUGAR | BF4: 7º LUGAR | BG4: 8º LUGAR | BH4: 9º LUGAR | BI4: 10º LUGAR | BJ4: 11º LUGAR | BK4: 12º LUGAR | BL4: 13º LUGAR | BM4: 14º LUGAR | BN4: 15º LUGAR | BO4: 16º LUGAR | BP4: 17º LUGAR | BQ4: 18º LUGAR | BR4: 19º LUGAR | BS4: 20º LUGAR | BT4: 21º LUGAR | BU4: 22º LUGAR | BV4: 23º LUGAR | BW4: 24º LUGAR | BX4: 25º LUGAR | BY4: 26º LUGAR | BZ4: 27º LUGAR | CA4: 28º LUGAR | CB4: 29º LUGAR | CC4: 30º LUGAR | CD4: 31º LUGAR | CE4: 32º LUGAR | CF4: 33º LUGAR | CG4: 34º LUGAR | CH4: 35º LUGAR | CI4: 36º LUGAR | CJ4: 37º LUGAR | CK4: 38º LUGAR | CL4: 39º LUGAR | CM4: 40º LUGAR | CN4: 41º LUGAR
A5: 1 | B5: Alexandre Melillo | C5: 112 | D5: 2 | E5: 17 | H5: 9 | I5: 7 | L5: 9 | M5: 7 | P5: 8 | Q5: 8 | T5: 4 | U5: 13 | X5: 4 | Y5: 13 | AB5: 14 | AC5: 2 | AF5: 10 | AG5: 6 | AJ5: 5 | AK5: 11 | AN5: 5 | AO5: 11 | AR5: 9 | AS5: 7 | AV5: 6 | AW5: 10 | AZ5: 0 | BA5: 1 | BB5: 0 | BC5: 2 | BD5: 2 | BE5: 1 | BF5: 0 | BG5: 1 | BH5: 3 | BI5: 1 | BJ5: 0 | BK5: 0 | BL5: 0 | BM5: 1 | BN5: 0 | BO5: 0 | BP5: 0 | BQ5: 0 | BR5: 0 | BS5: 0 | BT5: 0 | BU5: 0 | BV5: 0 | BW5: 0 | BX5: 0 | BY5: 0 | BZ5: 0 | CA5: 0 | CB5: 0 | CC5: 0 | CD5: 0 | CE5: 0 | CF5: 0 | CG5: 0 | CH5: 0 | CI5: 0 | CJ5: 0 | CK5: 0 | CL5: 0 | CM5: 0 | CN5: 0
A6: 2 | B6: Álvaro Paiva | C6: 116 | D6: 10 | E6: 6 | H6: 8 | I6: 8 | L6: 4 | M6: 13 | P6: 15 | Q6: 1 | T6: 6 | U6: 10 | X6: 11 | Y6: 5 | AB6: 1 | AC6: 20 | AF6: 7 | AG6: 9 | AJ6: 7 | AK6: 9 | AL6: 1 | AN6: 6 | AO6: 10 | AR6: 10 | AS6: 6 | AV6: 2 | AW6: 17 | AX6: 1 | AZ6: 1 | BA6: 1 | BB6: 0 | BC6: 1 | BD6: 0 | BE6: 2 | BF6: 2 | BG6: 1 | BH6: 0 | BI6: 2 | BJ6: 1 | BK6: 0 | BL6: 0 | BM6: 0 | BN6: 1 | BO6: 0 | BP6: 0 | BQ6: 0 | BR6: 0 | BS6: 0 | BT6: 0 | BU6: 0 | BV6: 0 | BW6: 0 | BX6: 0 | BY6: 0 | BZ6: 0 | CA6: 0 | CB6: 0 | CC6: 0 | CD6: 0 | CE6: 0 | CF6: 0 | CG6: 0 | CH6: 0 | CI6: 0 | CJ6: 0 | CK6: 0 | CL6: 0 | CM6: 0 | CN6: 0
A7: 3 | B7: Carlos Eduardo | C7: 42 | E7: 0 | H7: 15 | I7: 1 | L7: 8 | M7: 8 | P7: 7 | Q7: 9 | T7: 11 | U7: 5 | Y7: 0 | AB7: 3 | AC7: 15 | AF7: 6 | AG7: 10 | AJ7: 12 | AK7: 4 | AO7: 0 | AS7: 0 | AU7: -5 | AW7: 0 | AY7: -5 | AZ7: 0 | BA7: 0 | BB7: 1 | BC7: 0 | BD7: 0 | BE7: 1 | BF7: 1 | BG7: 1 | BH7: 0 | BI7: 0 | BJ7: 1 | BK7: 1 | BL7: 0 | BM7: 0 | BN7: 1 | BO7: 0 | BP7: 0 | BQ7: 0 | BR7: 0 | BS7: 0 | BT7: 0 | BU7: 0 | BV7: 0 | BW7: 0 | BX7: 0 | BY7: 0 | BZ7: 0 | CA7: 0 | CB7: 0 | CC7: 0 | CD7: 0 | CE7: 0 | CF7: 0 | CG7: 0 | CH7: 0 | CI7: 0 | CJ7: 0 | CK7: 0 | CL7: 0 | CM7: 0 | CN7: 0
A8: 4 | B8: Carlos Sampaio | C8: 96 | D8: 9 | E8: 7 | H8: 13 | I8: 3 | L8: 2 | M8: 17 | P8: 5 | Q8: 11 | T8: 10 | U8: 6 | X8: 6 | Y8: 10 | AB8: 9 | AC8: 7 | AF8: 17 | AG8: 1 | AI8: SIM | AJ8: 14 | AK8: 2 | AN8: 9 | AO8: 7 | AR8: 6 | AS8: 10 | AV8: 3 | AW8: 15 | AZ8: 0 | BA8: 1 | BB8: 1 | BC8: 0 | BD8: 1 | BE8: 2 | BF8: 0 | BG8: 0 | BH8: 3 | BI8: 1 | BJ8: 0 | BK8: 0 | BL8: 1 | BM8: 1 | BN8: 0 | BO8: 0 | BP8: 1 | BQ8: 0 | BR8: 0 | BS8: 0 | BT8: 0 | BU8: 0 | BV8: 0 | BW8: 0 | BX8: 0 | BY8: 0 | BZ8: 0 | CA8: 0 | CB8: 0 | CC8: 0 | CD8: 0 | CE8: 0 | CF8: 0 | CG8: 0 | CH8: 0 | CI8: 0 | CJ8: 0 | CK8: 0 | CL8: 0 | CM8: 0 | CN8: 0
A9: 5 | B9: Claudio Junqueira | C9: 0 | E9: 0 | I9: 0 | K9: -5 | M9: 0 | O9: -5 | Q9: 0 | S9: -5 | U9: 0 | W9: -5 | Y9: 0 | AA9: -5 | AC9: 0 | AE9: -5 | AG9: 0 | AI9: -5 | AK9: 0 | AM9: -5 | AO9: 0 | AQ9: -5 | AS9: 0 | AU9: -5 | AW9: 0 | AY9: -5 | AZ9: 0 | BA9: 0 | BB9: 0 | BC9: 0 | BD9: 0 | BE9: 0 | BF9: 0 | BG9: 0 | BH9: 0 | BI9: 0 | BJ9: 0 | BK9: 0 | BL9: 0 | BM9: 0 | BN9: 0 | BO9: 0 | BP9: 0 | BQ9: 0 | BR9: 0 | BS9: 0 | BT9: 0 | BU9: 0 | BV9: 0 | BW9: 0 | BX9: 0 | BY9: 0 | BZ9: 0 | CA9: 0 | CB9: 0 | CC9: 0 | CD9: 0 | CE9: 0 | CF9: 0 | CG9: 0 | CH9: 0 | CI9: 0 | CJ9: 0 | CK9: 0 | CL9: 0 | CM9: 0 | CN9: 0
A10: 6 | B10: Eduardo Dias | C10: 119 | D10: 5 | E10: 11 | H10: 6 | I10: 10 | L10: 7 | M10: 9 | P10: 13 | Q10: 3 | T10: 18 | U10: 1 | W10: SIM | X10: 0 | Y10: 0 | AA10: SIM | AB10: 7 | AC10: 9 | AF10: 3 | AG10: 15 | AJ10: 8 | AK10: 8 | AN10: 3 | AO10: 15 | AP10: 1 | AR10: 2 | AS10: 17 | AV10: 1 | AW10: 20 | AZ10: 1 | BA10: 1 | BB10: 2 | BC10: 0 | BD10: 1 | BE10: 1 | BF10: 2 | BG10: 1 | BH10: 0 | BI10: 0 | BJ10: 0 | BK10: 0 | BL10: 1 | BM10: 0 | BN10: 0 | BO10: 0 | BP10: 0 | BQ10: 1 | BR10: 0 | BS10: 0 | BT10: 0 | BU10: 0 | BV10: 0 | BW10: 0 | BX10: 0 | BY10: 0 | BZ10: 0 | CA10: 0 | CB10: 0 | CC10: 0 | CD10: 0 | CE10: 0 | CF10: 0 | CG10: 0 | CH10: 0 | CI10: 0 | CJ10: 0 | CK10: 0 | CL10: 0 | CM10: 0 | CN10: 0
A11: 7 | B11: Euclides Almeida | C11: 77 | E11: 0 | H11: 2 | I11: 17 | L11: 12 | M11: 4 | P11: 11 | Q11: 5 | U11: 0 | X11: 9 | Y11: 7 | AB11: 5 | AC11: 11 | AF11: 13 | AG11: 3 | AJ11: 10 | AK11: 6 | AN11: 19 | AO11: 1 | AQ11: SIM | AR11: 3 | AS11: 15 | AV11: 8 | AW11: 8 | AZ11: 0 | BA11: 1 | BB11: 1 | BC11: 0 | BD11: 1 | BE11: 0 | BF11: 0 | BG11: 1 | BH11: 1 | BI11: 1 | BJ11: 1 | BK11: 1 | BL11: 1 | BM11: 0 | BN11: 0 | BO11: 0 | BP11: 0 | BQ11: 0 | BR11: 1 | BS11: 0 | BT11: 0 | BU11: 0 | BV11: 0 | BW11: 0 | BX11: 0 | BY11: 0 | BZ11: 0 | CA11: 0 | CB11: 0 | CC11: 0 | CD11: 0 | CE11: 0 | CF11: 0 | CG11: 0 | CH11: 0 | CI11: 0 | CJ11: 0 | CK11: 0 | CL11: 0 | CM11: 0 | CN11: 0
A12: 8 | B12: Gijo | C12: 42 | E12: 0 | G12: -5 | H12: 12 | I12: 4 | L12: 3 | M12: 15 | P12: 10 | Q12: 6 | T12: 3 | U12: 15 | V12: 1 | Y12: 0 | AB12: 11 | AC12: 5 | AF12: 4 | AG12: 13 | AJ12: 13 | AK12: 3 | AO12: 0 | AQ12: -5 | AS12: 0 | AU12: -5 | AW12: 0 | AY12: -5 | AZ12: 0 | BA12: 0 | BB12: 2 | BC12: 1 | BD12: 0 | BE12: 0 | BF12: 0 | BG12: 0 | BH12: 0 | BI12: 1 | BJ12: 1 | BK12: 1 | BL12: 1 | BM12: 0 | BN12: 0 | BO12: 0 | BP12: 0 | BQ12: 0 | BR12: 0 | BS12: 0 | BT12: 0 | BU12: 0 | BV12: 0 | BW12: 0 | BX12: 0 | BY12: 0 | BZ12: 0 | CA12: 0 | CB12: 0 | CC12: 0 | CD12: 0 | CE12: 0 | CF12: 0 | CG12: 0 | CH12: 0 | CI12: 0 | CJ12: 0 | CK12: 0 | CL12: 0 | CM12: 0 | CN12: 0
A13: 9 | B13: Guilherme Janot | C13: 126 | D13: 1 | E13: 20 | F13: 1 | H13: 11 | I13: 5 | L13: 6 | M13: 10 | P13: 21 | Q13: 1 | S13: SIM | T13: 2 | U13: 17 | X13: 3 | Y13: 15 | AB13: 2 | AC13: 17 | AF13: 1 | AG13: 20 | AH13: 1 | AJ13: 2 | AK13: 17 | AO13: 0 | AR13: 21 | AS13: 1 | AU13: SIM | AV13: 28 | AW13: 1 | AY13: SIM | AZ13: 2 | BA13: 3 | BB13: 1 | BC13: 0 | BD13: 0 | BE13: 1 | BF13: 0 | BG13: 0 | BH13: 0 | BI13: 0 | BJ13: 1 | BK13: 0 | BL13: 0 | BM13: 0 | BN13: 0 | BO13: 0 | BP13: 0 | BQ13: 0 | BR13: 0 | BS13: 0 | BT13: 2 | BU13: 0 | BV13: 0 | BW13: 0 | BX13: 0 | BY13: 0 | BZ13: 0 | CA13: 1 | CB13: 0 | CC13: 0 | CD13: 0 | CE13: 0 | CF13: 0 | CG13: 0 | CH13: 0 | CI13: 0 | CJ13: 0 | CK13: 0 | CL13: 0 | CM13: 0 | CN13: 0
A14: 10 | B14: Ivan Renault | C14: 27 | D14: 14 | E14: 2 | H14: 5 | I14: 11 | L14: 13 | M14: 3 | P14: 14 | Q14: 2 | T14: 7 | U14: 9 | Y14: 0 | AC14: 0 | AG14: 0 | AK14: 0 | AO14: 0 | AS14: 0 | AW14: 0 | AZ14: 0 | BA14: 0 | BB14: 0 | BC14: 0 | BD14: 1 | BE14: 0 | BF14: 1 | BG14: 0 | BH14: 0 | BI14: 0 | BJ14: 0 | BK14: 0 | BL14: 1 | BM14: 2 | BN14: 0 | BO14: 0 | BP14: 0 | BQ14: 0 | BR14: 0 | BS14: 0 | BT14: 0 | BU14: 0 | BV14: 0 | BW14: 0 | BX14: 0 | BY14: 0 | BZ14: 0 | CA14: 0 | CB14: 0 | CC14: 0 | CD14: 0 | CE14: 0 | CF14: 0 | CG14: 0 | CH14: 0 | CI14: 0 | CJ14: 0 | CK14: 0 | CL14: 0 | CM14: 0 | CN14: 0
A15: 11 | B15: Jarbas Reis | C15: 88 | D15: 7 | E15: 9 | H15: 7 | I15: 9 | L15: 17 | M15: 1 | P15: 6 | Q15: 10 | T15: 5 | U15: 11 | X15: 7 | Y15: 9 | AB15: 13 | AC15: 3 | AF15: 9 | AG15: 7 | AK15: 0 | AN15: 7 | AO15: 9 | AR15: 5 | AS15: 11 | AV15: 7 | AW15: 9 | AZ15: 0 | BA15: 0 | BB15: 0 | BC15: 0 | BD15: 2 | BE15: 1 | BF15: 5 | BG15: 0 | BH15: 1 | BI15: 0 | BJ15: 0 | BK15: 0 | BL15: 1 | BM15: 0 | BN15: 0 | BO15: 0 | BP15: 1 | BQ15: 0 | BR15: 0 | BS15: 0 | BT15: 0 | BU15: 0 | BV15: 0 | BW15: 0 | BX15: 0 | BY15: 0 | BZ15: 0 | CA15: 0 | CB15: 0 | CC15: 0 | CD15: 0 | CE15: 0 | CF15: 0 | CG15: 0 | CH15: 0 | CI15: 0 | CJ15: 0 | CK15: 0 | CL15: 0 | CM15: 0 | CN15: 0
A16: 12 | B16: Lucio Chequer | C16: 32 | D16: 13 | E16: 3 | H16: 14 | I16: 2 | L16: 14 | M16: 2 | Q16: 0 | T16: 12 | U16: 4 | X16: 10 | Y16: 6 | AB16: 15 | AC16: 1 | AF16: 11 | AG16: 5 | AJ16: 4 | AK16: 13 | AO16: 0 | AR16: 17 | AS16: 1 | AU16: SIM | AW16: 0 | AY16: -5 | AZ16: 0 | BA16: 0 | BB16: 0 | BC16: 1 | BD16: 0 | BE16: 0 | BF16: 0 | BG16: 0 | BH16: 0 | BI16: 1 | BJ16: 1 | BK16: 1 | BL16: 1 | BM16: 2 | BN16: 1 | BO16: 0 | BP16: 1 | BQ16: 0 | BR16: 0 | BS16: 0 | BT16: 0 | BU16: 0 | BV16: 0 | BW16: 0 | BX16: 0 | BY16: 0 | BZ16: 0 | CA16: 0 | CB16: 0 | CC16: 0 | CD16: 0 | CE16: 0 | CF16: 0 | CG16: 0 | CH16: 0 | CI16: 0 | CJ16: 0 | CK16: 0 | CL16: 0 | CM16: 0 | CN16: 0
A17: 13 | B17: Marcelo Clemente | C17: 28 | E17: 0 | I17: 0 | K17: -5 | M17: 0 | Q17: 0 | S17: -5 | U17: 0 | Y17: 0 | AA17: -5 | AB17: 8 | AC17: 8 | AD17: 1 | AG17: 0 | AI17: -5 | AJ17: 3 | AK17: 15 | AN17: 1 | AO17: 20 | AR17: 7 | AS17: 9 | AW17: 0 | AY17: -5 | AZ17: 1 | BA17: 0 | BB17: 1 | BC17: 0 | BD17: 0 | BE17: 0 | BF17: 1 | BG17: 1 | BH17: 0 | BI17: 0 | BJ17: 0 | BK17: 0 | BL17: 0 | BM17: 0 | BN17: 0 | BO17: 0 | BP17: 0 | BQ17: 0 | BR17: 0 | BS17: 0 | BT17: 0 | BU17: 0 | BV17: 0 | BW17: 0 | BX17: 0 | BY17: 0 | BZ17: 0 | CA17: 0 | CB17: 0 | CC17: 0 | CD17: 0 | CE17: 0 | CF17: 0 | CG17: 0 | CH17: 0 | CI17: 0 | CJ17: 0 | CK17: 0 | CL17: 0 | CM17: 0 | CN17: 0
A18: 14 | B18: Marcelo Mizrahy | C18: 169 | D18: 4 | E18: 13 | H18: 4 | I18: 13 | L18: 1 | M18: 20 | N18: 1 | P18: 1 | Q18: 20 | R18: 1 | T18: 9 | U18: 7 | X18: 5 | Y18: 11 | AB18: 6 | AC18: 10 | AF18: 2 | AG18: 17 | AJ18: 1 | AK18: 20 | AN18: 2 | AO18: 17 | AR18: 8 | AS18: 8 | AV18: 5 | AW18: 11 | AZ18: 3 | BA18: 2 | BB18: 0 | BC18: 2 | BD18: 2 | BE18: 1 | BF18: 0 | BG18: 1 | BH18: 1 | BI18: 0 | BJ18: 0 | BK18: 0 | BL18: 0 | BM18: 0 | BN18: 0 | BO18: 0 | BP18: 0 | BQ18: 0 | BR18: 0 | BS18: 0 | BT18: 0 | BU18: 0 | BV18: 0 | BW18: 0 | BX18: 0 | BY18: 0 | BZ18: 0 | CA18: 0 | CB18: 0 | CC18: 0 | CD18: 0 | CE18: 0 | CF18: 0 | CG18: 0 | CH18: 0 | CI18: 0 | CJ18: 0 | CK18: 0 | CL18: 0 | CM18: 0 | CN18: 0
A19: 15 | B19: Marcelo Sant'anna | C19: 63 | D19: 11 | E19: 5 | H19: 1 | I19: 20 | J19: 1 | L19: 15 | M19: 1 | P19: 17 | Q19: 1 | S19: SIM | T19: 8 | U19: 8 | X19: 1 | Y19: 20 | Z19: 1 | AB19: 12 | AC19: 4 | AF19: 14 | AG19: 2 | AJ19: 33 | AK19: 0 | AM19: SIM | AO19: 0 | AS19: 0 | AW19: 0 | AZ19: 2 | BA19: 0 | BB19: 0 | BC19: 0 | BD19: 0 | BE19: 0 | BF19: 0 | BG19: 1 | BH19: 0 | BI19: 0 | BJ19: 1 | BK19: 1 | BL19: 0 | BM19: 1 | BN19: 1 | BO19: 0 | BP19: 1 | BQ19: 0 | BR19: 0 | BS19: 0 | BT19: 0 | BU19: 0 | BV19: 0 | BW19: 0 | BX19: 0 | BY19: 0 | BZ19: 0 | CA19: 0 | CB19: 0 | CC19: 0 | CD19: 0 | CE19: 0 | CF19: 1 | CG19: 0 | CH19: 0 | CI19: 0 | CJ19: 0 | CK19: 0 | CL19: 0 | CM19: 0 | CN19: 0
A20: 16 | B20: Marcelo Surerus | C20: 89 | E20: 0 | H20: 3 | I20: 15 | L20: 11 | M20: 5 | P20: 4 | Q20: 13 | T20: 13 | U20: 3 | Y20: 0 | AB20: 10 | AC20: 6 | AF20: 12 | AG20: 4 | AJ20: 6 | AK20: 10 | AN20: 4 | AO20: 13 | AR20: 4 | AS20: 13 | AV20: 9 | AW20: 7 | AZ20: 0 | BA20: 0 | BB20: 1 | BC20: 3 | BD20: 0 | BE20: 1 | BF20: 0 | BG20: 0 | BH20: 1 | BI20: 1 | BJ20: 1 | BK20: 1 | BL20: 1 | BM20: 0 | BN20: 0 | BO20: 0 | BP20: 0 | BQ20: 0 | BR20: 0 | BS20: 0 | BT20: 0 | BU20: 0 | BV20: 0 | BW20: 0 | BX20: 0 | BY20: 0 | BZ20: 0 | CA20: 0 | CB20: 0 | CC20: 0 | CD20: 0 | CE20: 0 | CF20: 0 | CG20: 0 | CH20: 0 | CI20: 0 | CJ20: 0 | CK20: 0 | CL20: 0 | CM20: 0 | CN20: 0
A21: 17 | B21: Marco Sant’anna | C21: 0 | D21: 12 | E21: 4 | I21: 0 | K21: -5 | M21: 0 | Q21: 0 | S21: -5 | U21: 0 | W21: -5 | Y21: 0 | AA21: -5 | AC21: 0 | AE21: -5 | AG21: 0 | AI21: -5 | AJ21: 15 | AK21: 1 | AO21: 0 | AQ21: -5 | AS21: 0 | AU21: -5 | AV21: 11 | AW21: 5 | AY21: -5 | AZ21: 0 | BA21: 0 | BB21: 0 | BC21: 0 | BD21: 0 | BE21: 0 | BF21: 0 | BG21: 0 | BH21: 0 | BI21: 0 | BJ21: 1 | BK21: 1 | BL21: 0 | BM21: 0 | BN21: 1 | BO21: 0 | BP21: 0 | BQ21: 0 | BR21: 0 | BS21: 0 | BT21: 0 | BU21: 0 | BV21: 0 | BW21: 0 | BX21: 0 | BY21: 0 | BZ21: 0 | CA21: 0 | CB21: 0 | CC21: 0 | CD21: 0 | CE21: 0 | CF21: 0 | CG21: 0 | CH21: 0 | CI21: 0 | CJ21: 0 | CK21: 0 | CL21: 0 | CM21: 0 | CN21: 0
A22: 18 | B22: Roberto Veloso | C22: 27 | D22: 3 | E22: 15 | H22: 10 | I22: 6 | L22: 16 | M22: 1 | P22: 9 | Q22: 7 | T22: 14 | U22: 2 | Y22: 0 | AC22: 0 | AF22: 5 | AG22: 11 | AK22: 0 | AO22: 0 | AQ22: -5 | AS22: 0 | AU22: -5 | AW22: 0 | AY22: -5 | AZ22: 0 | BA22: 0 | BB22: 1 | BC22: 0 | BD22: 1 | BE22: 0 | BF22: 0 | BG22: 0 | BH22: 1 | BI22: 1 | BJ22: 0 | BK22: 0 | BL22: 0 | BM22: 1 | BN22: 0 | BO22: 1 | BP22: 0 | BQ22: 0 | BR22: 0 | BS22: 0 | BT22: 0 | BU22: 0 | BV22: 0 | BW22: 0 | BX22: 0 | BY22: 0 | BZ22: 0 | CA22: 0 | CB22: 0 | CC22: 0 | CD22: 0 | CE22: 0 | CF22: 0 | CG22: 0 | CH22: 0 | CI22: 0 | CJ22: 0 | CK22: 0 | CL22: 0 | CM22: 0 | CN22: 0
A23: 19 | B23: Rodrigo Mercadante | C23: 69 | D23: 6 | E23: 10 | I23: 0 | L23: 10 | M23: 6 | P23: 3 | Q23: 15 | U23: 0 | X23: 2 | Y23: 17 | AB23: 4 | AC23: 13 | AF23: 8 | AG23: 8 | AJ23: 11 | AK23: 5 | AO23: 0 | AS23: 0 | AW23: 0 | AY23: -5 | AZ23: 0 | BA23: 1 | BB23: 1 | BC23: 1 | BD23: 0 | BE23: 1 | BF23: 0 | BG23: 1 | BH23: 0 | BI23: 1 | BJ23: 1 | BK23: 0 | BL23: 0 | BM23: 0 | BN23: 0 | BO23: 0 | BP23: 0 | BQ23: 0 | BR23: 0 | BS23: 0 | BT23: 0 | BU23: 0 | BV23: 0 | BW23: 0 | BX23: 0 | BY23: 0 | BZ23: 0 | CA23: 0 | CB23: 0 | CC23: 0 | CD23: 0 | CE23: 0 | CF23: 0 | CG23: 0 | CH23: 0 | CI23: 0 | CJ23: 0 | CK23: 0 | CL23: 0 | CM23: 0 | CN23: 0
A24: 20 | B24: Wilson Cristofani | C24: 114 | D24: 8 | E24: 8 | I24: 0 | L24: 5 | M24: 11 | P24: 2 | Q24: 17 | T24: 1 | U24: 20 | X24: 8 | Y24: 8 | AB24: 16 | AC24: 1 | AG24: 0 | AJ24: 9 | AK24: 7 | AN24: 8 | AO24: 8 | AR24: 1 | AS24: 20 | AT24: 1 | AV24: 4 | AW24: 13 | AZ24: 2 | BA24: 1 | BB24: 0 | BC24: 1 | BD24: 1 | BE24: 0 | BF24: 0 | BG24: 3 | BH24: 1 | BI24: 0 | BJ24: 0 | BK24: 0 | BL24: 0 | BM24: 0 | BN24: 0 | BO24: 1 | BP24: 0 | BQ24: 0 | BR24: 0 | BS24: 0 | BT24: 0 | BU24: 0 | BV24: 0 | BW24: 0 | BX24: 0 | BY24: 0 | BZ24: 0 | CA24: 0 | CB24: 0 | CC24: 0 | CD24: 0 | CE24: 0 | CF24: 0 | CG24: 0 | CH24: 0 | CI24: 0 | CJ24: 0 | CK24: 0 | CL24: 0 | CM24: 0 | CN24: 0
A25: 21 | C25: 0 | E25: 0 | I25: 0 | M25: 0 | Q25: 0 | U25: 0 | Y25: 0 | AC25: 0 | AG25: 0 | AK25: 0 | AO25: 0 | AS25: 0 | AW25: 0 | AZ25: 0 | BA25: 0 | BB25: 0 | BC25: 0 | BD25: 0 | BE25: 0 | BF25: 0 | BG25: 0 | BH25: 0 | BI25: 0 | BJ25: 0 | BK25: 0 | BL25: 0 | BM25: 0 | BN25: 0 | BO25: 0 | BP25: 0 | BQ25: 0 | BR25: 0 | BS25: 0 | BT25: 0 | BU25: 0 | BV25: 0 | BW25: 0 | BX25: 0 | BY25: 0 | BZ25: 0 | CA25: 0 | CB25: 0 | CC25: 0 | CD25: 0 | CE25: 0 | CF25: 0 | CG25: 0 | CH25: 0 | CI25: 0 | CJ25: 0 | CK25: 0 | CL25: 0 | CM25: 0 | CN25: 0
A26: 22 | C26: 0 | E26: 0 | I26: 0 | M26: 0 | Q26: 0 | U26: 0 | Y26: 0 | AC26: 0 | AG26: 0 | AK26: 0 | AO26: 0 | AS26: 0 | AW26: 0 | AZ26: 0 | BA26: 0 | BB26: 0 | BC26: 0 | BD26: 0 | BE26: 0 | BF26: 0 | BG26: 0 | BH26: 0 | BI26: 0 | BJ26: 0 | BK26: 0 | BL26: 0 | BM26: 0 | BN26: 0 | BO26: 0 | BP26: 0 | BQ26: 0 | BR26: 0 | BS26: 0 | BT26: 0 | BU26: 0 | BV26: 0 | BW26: 0 | BX26: 0 | BY26: 0 | BZ26: 0 | CA26: 0 | CB26: 0 | CC26: 0 | CD26: 0 | CE26: 0 | CF26: 0 | CG26: 0 | CH26: 0 | CI26: 0 | CJ26: 0 | CK26: 0 | CL26: 0 | CM26: 0 | CN26: 0
A27: 23 | C27: 0 | E27: 0 | I27: 0 | M27: 0 | Q27: 0 | U27: 0 | Y27: 0 | AC27: 0 | AG27: 0 | AK27: 0 | AO27: 0 | AS27: 0 | AW27: 0 | AZ27: 0 | BA27: 0 | BB27: 0 | BC27: 0 | BD27: 0 | BE27: 0 | BF27: 0 | BG27: 0 | BH27: 0 | BI27: 0 | BJ27: 0 | BK27: 0 | BL27: 0 | BM27: 0 | BN27: 0 | BO27: 0 | BP27: 0 | BQ27: 0 | BR27: 0 | BS27: 0 | BT27: 0 | BU27: 0 | BV27: 0 | BW27: 0 | BX27: 0 | BY27: 0 | BZ27: 0 | CA27: 0 | CB27: 0 | CC27: 0 | CD27: 0 | CE27: 0 | CF27: 0 | CG27: 0 | CH27: 0 | CI27: 0 | CJ27: 0 | CK27: 0 | CL27: 0 | CM27: 0 | CN27: 0
A28: 24 | C28: 0 | E28: 0 | I28: 0 | M28: 0 | Q28: 0 | U28: 0 | Y28: 0 | AC28: 0 | AG28: 0 | AK28: 0 | AO28: 0 | AS28: 0 | AW28: 0 | AZ28: 0 | BA28: 0 | BB28: 0 | BC28: 0 | BD28: 0 | BE28: 0 | BF28: 0 | BG28: 0 | BH28: 0 | BI28: 0 | BJ28: 0 | BK28: 0 | BL28: 0 | BM28: 0 | BN28: 0 | BO28: 0 | BP28: 0 | BQ28: 0 | BR28: 0 | BS28: 0 | BT28: 0 | BU28: 0 | BV28: 0 | BW28: 0 | BX28: 0 | BY28: 0 | BZ28: 0 | CA28: 0 | CB28: 0 | CC28: 0 | CD28: 0 | CE28: 0 | CF28: 0 | CG28: 0 | CH28: 0 | CI28: 0 | CJ28: 0 | CK28: 0 | CL28: 0 | CM28: 0 | CN28: 0
A29: 25 | C29: 0 | E29: 0 | I29: 0 | M29: 0 | Q29: 0 | U29: 0 | Y29: 0 | AC29: 0 | AG29: 0 | AK29: 0 | AO29: 0 | AS29: 0 | AW29: 0 | AZ29: 0 | BA29: 0 | BB29: 0 | BC29: 0 | BD29: 0 | BE29: 0 | BF29: 0 | BG29: 0 | BH29: 0 | BI29: 0 | BJ29: 0 | BK29: 0 | BL29: 0 | BM29: 0 | BN29: 0 | BO29: 0 | BP29: 0 | BQ29: 0 | BR29: 0 | BS29: 0 | BT29: 0 | BU29: 0 | BV29: 0 | BW29: 0 | BX29: 0 | BY29: 0 | BZ29: 0 | CA29: 0 | CB29: 0 | CC29: 0 | CD29: 0 | CE29: 0 | CF29: 0 | CG29: 0 | CH29: 0 | CI29: 0 | CJ29: 0 | CK29: 0 | CL29: 0 | CM29: 0 | CN29: 0
A30: 26 | C30: 0 | E30: 0 | I30: 0 | M30: 0 | Q30: 0 | U30: 0 | Y30: 0 | AC30: 0 | AG30: 0 | AK30: 0 | AO30: 0 | AS30: 0 | AW30: 0 | AZ30: 0 | BA30: 0 | BB30: 0 | BC30: 0 | BD30: 0 | BE30: 0 | BF30: 0 | BG30: 0 | BH30: 0 | BI30: 0 | BJ30: 0 | BK30: 0 | BL30: 0 | BM30: 0 | BN30: 0 | BO30: 0 | BP30: 0 | BQ30: 0 | BR30: 0 | BS30: 0 | BT30: 0 | BU30: 0 | BV30: 0 | BW30: 0 | BX30: 0 | BY30: 0 | BZ30: 0 | CA30: 0 | CB30: 0 | CC30: 0 | CD30: 0 | CE30: 0 | CF30: 0 | CG30: 0 | CH30: 0 | CI30: 0 | CJ30: 0 | CK30: 0 | CL30: 0 | CM30: 0 | CN30: 0
A31: 27 | C31: 0 | E31: 0 | I31: 0 | M31: 0 | Q31: 0 | U31: 0 | Y31: 0 | AC31: 0 | AG31: 0 | AK31: 0 | AO31: 0 | AS31: 0 | AW31: 0 | AZ31: 0 | BA31: 0 | BB31: 0 | BC31: 0 | BD31: 0 | BE31: 0 | BF31: 0 | BG31: 0 | BH31: 0 | BI31: 0 | BJ31: 0 | BK31: 0 | BL31: 0 | BM31: 0 | BN31: 0 | BO31: 0 | BP31: 0 | BQ31: 0 | BR31: 0 | BS31: 0 | BT31: 0 | BU31: 0 | BV31: 0 | BW31: 0 | BX31: 0 | BY31: 0 | BZ31: 0 | CA31: 0 | CB31: 0 | CC31: 0 | CD31: 0 | CE31: 0 | CF31: 0 | CG31: 0 | CH31: 0 | CI31: 0 | CJ31: 0 | CK31: 0 | CL31: 0 | CM31: 0 | CN31: 0
A32: 28 | C32: 0 | E32: 0 | I32: 0 | M32: 0 | Q32: 0 | U32: 0 | Y32: 0 | AC32: 0 | AG32: 0 | AK32: 0 | AO32: 0 | AS32: 0 | AW32: 0 | AZ32: 0 | BA32: 0 | BB32: 0 | BC32: 0 | BD32: 0 | BE32: 0 | BF32: 0 | BG32: 0 | BH32: 0 | BI32: 0 | BJ32: 0 | BK32: 0 | BL32: 0 | BM32: 0 | BN32: 0 | BO32: 0 | BP32: 0 | BQ32: 0 | BR32: 0 | BS32: 0 | BT32: 0 | BU32: 0 | BV32: 0 | BW32: 0 | BX32: 0 | BY32: 0 | BZ32: 0 | CA32: 0 | CB32: 0 | CC32: 0 | CD32: 0 | CE32: 0 | CF32: 0 | CG32: 0 | CH32: 0 | CI32: 0 | CJ32: 0 | CK32: 0 | CL32: 0 | CM32: 0 | CN32: 0
A33: 29 | C33: 0 | E33: 0 | I33: 0 | M33: 0 | Q33: 0 | U33: 0 | Y33: 0 | AC33: 0 | AG33: 0 | AK33: 0 | AO33: 0 | AS33: 0 | AW33: 0 | AZ33: 0 | BA33: 0 | BB33: 0 | BC33: 0 | BD33: 0 | BE33: 0 | BF33: 0 | BG33: 0 | BH33: 0 | BI33: 0 | BJ33: 0 | BK33: 0 | BL33: 0 | BM33: 0 | BN33: 0 | BO33: 0 | BP33: 0 | BQ33: 0 | BR33: 0 | BS33: 0 | BT33: 0 | BU33: 0 | BV33: 0 | BW33: 0 | BX33: 0 | BY33: 0 | BZ33: 0 | CA33: 0 | CB33: 0 | CC33: 0 | CD33: 0 | CE33: 0 | CF33: 0 | CG33: 0 | CH33: 0 | CI33: 0 | CJ33: 0 | CK33: 0 | CL33: 0 | CM33: 0 | CN33: 0
A34: 30 | C34: 0 | E34: 0 | I34: 0 | M34: 0 | Q34: 0 | U34: 0 | Y34: 0 | AC34: 0 | AG34: 0 | AK34: 0 | AO34: 0 | AS34: 0 | AW34: 0 | AZ34: 0 | BA34: 0 | BB34: 0 | BC34: 0 | BD34: 0 | BE34: 0 | BF34: 0 | BG34: 0 | BH34: 0 | BI34: 0 | BJ34: 0 | BK34: 0 | BL34: 0 | BM34: 0 | BN34: 0 | BO34: 0 | BP34: 0 | BQ34: 0 | BR34: 0 | BS34: 0 | BT34: 0 | BU34: 0 | BV34: 0 | BW34: 0 | BX34: 0 | BY34: 0 | BZ34: 0 | CA34: 0 | CB34: 0 | CC34: 0 | CD34: 0 | CE34: 0 | CF34: 0 | CG34: 0 | CH34: 0 | CI34: 0 | CJ34: 0 | CK34: 0 | CL34: 0 | CM34: 0 | CN34: 0
A35: 31 | C35: 0 | E35: 0 | I35: 0 | M35: 0 | Q35: 0 | U35: 0 | Y35: 0 | AC35: 0 | AG35: 0 | AK35: 0 | AO35: 0 | AS35: 0 | AW35: 0 | AZ35: 0 | BA35: 0 | BB35: 0 | BC35: 0 | BD35: 0 | BE35: 0 | BF35: 0 | BG35: 0 | BH35: 0 | BI35: 0 | BJ35: 0 | BK35: 0 | BL35: 0 | BM35: 0 | BN35: 0 | BO35: 0 | BP35: 0 | BQ35: 0 | BR35: 0 | BS35: 0 | BT35: 0 | BU35: 0 | BV35: 0 | BW35: 0 | BX35: 0 | BY35: 0 | BZ35: 0 | CA35: 0 | CB35: 0 | CC35: 0 | CD35: 0 | CE35: 0 | CF35: 0 | CG35: 0 | CH35: 0 | CI35: 0 | CJ35: 0 | CK35: 0 | CL35: 0 | CM35: 0 | CN35: 0
A36: 32 | C36: 0 | E36: 0 | I36: 0 | M36: 0 | Q36: 0 | U36: 0 | Y36: 0 | AC36: 0 | AG36: 0 | AK36: 0 | AO36: 0 | AS36: 0 | AW36: 0 | AZ36: 0 | BA36: 0 | BB36: 0 | BC36: 0 | BD36: 0 | BE36: 0 | BF36: 0 | BG36: 0 | BH36: 0 | BI36: 0 | BJ36: 0 | BK36: 0 | BL36: 0 | BM36: 0 | BN36: 0 | BO36: 0 | BP36: 0 | BQ36: 0 | BR36: 0 | BS36: 0 | BT36: 0 | BU36: 0 | BV36: 0 | BW36: 0 | BX36: 0 | BY36: 0 | BZ36: 0 | CA36: 0 | CB36: 0 | CC36: 0 | CD36: 0 | CE36: 0 | CF36: 0 | CG36: 0 | CH36: 0 | CI36: 0 | CJ36: 0 | CK36: 0 | CL36: 0 | CM36: 0 | CN36: 0
A37: 33 | C37: 0 | E37: 0 | I37: 0 | M37: 0 | Q37: 0 | U37: 0 | Y37: 0 | AC37: 0 | AG37: 0 | AK37: 0 | AO37: 0 | AS37: 0 | AW37: 0 | AZ37: 0 | BA37: 0 | BB37: 0 | BC37: 0 | BD37: 0 | BE37: 0 | BF37: 0 | BG37: 0 | BH37: 0 | BI37: 0 | BJ37: 0 | BK37: 0 | BL37: 0 | BM37: 0 | BN37: 0 | BO37: 0 | BP37: 0 | BQ37: 0 | BR37: 0 | BS37: 0 | BT37: 0 | BU37: 0 | BV37: 0 | BW37: 0 | BX37: 0 | BY37: 0 | BZ37: 0 | CA37: 0 | CB37: 0 | CC37: 0 | CD37: 0 | CE37: 0 | CF37: 0 | CG37: 0 | CH37: 0 | CI37: 0 | CJ37: 0 | CK37: 0 | CL37: 0 | CM37: 0 | CN37: 0
A38: 34 | C38: 0 | E38: 0 | I38: 0 | M38: 0 | Q38: 0 | U38: 0 | Y38: 0 | AC38: 0 | AG38: 0 | AK38: 0 | AO38: 0 | AS38: 0 | AW38: 0 | AZ38: 0 | BA38: 0 | BB38: 0 | BC38: 0 | BD38: 0 | BE38: 0 | BF38: 0 | BG38: 0 | BH38: 0 | BI38: 0 | BJ38: 0 | BK38: 0 | BL38: 0 | BM38: 0 | BN38: 0 | BO38: 0 | BP38: 0 | BQ38: 0 | BR38: 0 | BS38: 0 | BT38: 0 | BU38: 0 | BV38: 0 | BW38: 0 | BX38: 0 | BY38: 0 | BZ38: 0 | CA38: 0 | CB38: 0 | CC38: 0 | CD38: 0 | CE38: 0 | CF38: 0 | CG38: 0 | CH38: 0 | CI38: 0 | CJ38: 0 | CK38: 0 | CL38: 0 | CM38: 0 | CN38: 0
A39: 35 | C39: 0 | E39: 0 | I39: 0 | M39: 0 | Q39: 0 | U39: 0 | Y39: 0 | AC39: 0 | AG39: 0 | AK39: 0 | AO39: 0 | AS39: 0 | AW39: 0 | AZ39: 0 | BA39: 0 | BB39: 0 | BC39: 0 | BD39: 0 | BE39: 0 | BF39: 0 | BG39: 0 | BH39: 0 | BI39: 0 | BJ39: 0 | BK39: 0 | BL39: 0 | BM39: 0 | BN39: 0 | BO39: 0 | BP39: 0 | BQ39: 0 | BR39: 0 | BS39: 0 | BT39: 0 | BU39: 0 | BV39: 0 | BW39: 0 | BX39: 0 | BY39: 0 | BZ39: 0 | CA39: 0 | CB39: 0 | CC39: 0 | CD39: 0 | CE39: 0 | CF39: 0 | CG39: 0 | CH39: 0 | CI39: 0 | CJ39: 0 | CK39: 0 | CL39: 0 | CM39: 0 | CN39: 0
A40: 36 | C40: 0 | E40: 0 | I40: 0 | M40: 0 | Q40: 0 | U40: 0 | Y40: 0 | AC40: 0 | AG40: 0 | AK40: 0 | AO40: 0 | AS40: 0 | AW40: 0 | AZ40: 0 | BA40: 0 | BB40: 0 | BC40: 0 | BD40: 0 | BE40: 0 | BF40: 0 | BG40: 0 | BH40: 0 | BI40: 0 | BJ40: 0 | BK40: 0 | BL40: 0 | BM40: 0 | BN40: 0 | BO40: 0 | BP40: 0 | BQ40: 0 | BR40: 0 | BS40: 0 | BT40: 0 | BU40: 0 | BV40: 0 | BW40: 0 | BX40: 0 | BY40: 0 | BZ40: 0 | CA40: 0 | CB40: 0 | CC40: 0 | CD40: 0 | CE40: 0 | CF40: 0 | CG40: 0 | CH40: 0 | CI40: 0 | CJ40: 0 | CK40: 0 | CL40: 0 | CM40: 0 | CN40: 0
A41: 37 | C41: 0 | E41: 0 | I41: 0 | M41: 0 | Q41: 0 | U41: 0 | Y41: 0 | AC41: 0 | AG41: 0 | AK41: 0 | AO41: 0 | AS41: 0 | AW41: 0 | AZ41: 0 | BA41: 0 | BB41: 0 | BC41: 0 | BD41: 0 | BE41: 0 | BF41: 0 | BG41: 0 | BH41: 0 | BI41: 0 | BJ41: 0 | BK41: 0 | BL41: 0 | BM41: 0 | BN41: 0 | BO41: 0 | BP41: 0 | BQ41: 0 | BR41: 0 | BS41: 0 | BT41: 0 | BU41: 0 | BV41: 0 | BW41: 0 | BX41: 0 | BY41: 0 | BZ41: 0 | CA41: 0 | CB41: 0 | CC41: 0 | CD41: 0 | CE41: 0 | CF41: 0 | CG41: 0 | CH41: 0 | CI41: 0 | CJ41: 0 | CK41: 0 | CL41: 0 | CM41: 0 | CN41: 0
A42: 38 | C42: 0 | E42: 0 | I42: 0 | M42: 0 | Q42: 0 | U42: 0 | Y42: 0 | AC42: 0 | AG42: 0 | AK42: 0 | AO42: 0 | AS42: 0 | AW42: 0 | AZ42: 0 | BA42: 0 | BB42: 0 | BC42: 0 | BD42: 0 | BE42: 0 | BF42: 0 | BG42: 0 | BH42: 0 | BI42: 0 | BJ42: 0 | BK42: 0 | BL42: 0 | BM42: 0 | BN42: 0 | BO42: 0 | BP42: 0 | BQ42: 0 | BR42: 0 | BS42: 0 | BT42: 0 | BU42: 0 | BV42: 0 | BW42: 0 | BX42: 0 | BY42: 0 | BZ42: 0 | CA42: 0 | CB42: 0 | CC42: 0 | CD42: 0 | CE42: 0 | CF42: 0 | CG42: 0 | CH42: 0 | CI42: 0 | CJ42: 0 | CK42: 0 | CL42: 0 | CM42: 0 | CN42: 0
A43: 39 | C43: 0 | E43: 0 | I43: 0 | M43: 0 | Q43: 0 | U43: 0 | Y43: 0 | AC43: 0 | AG43: 0 | AK43: 0 | AO43: 0 | AS43: 0 | AW43: 0 | AZ43: 0 | BA43: 0 | BB43: 0 | BC43: 0 | BD43: 0 | BE43: 0 | BF43: 0 | BG43: 0 | BH43: 0 | BI43: 0 | BJ43: 0 | BK43: 0 | BL43: 0 | BM43: 0 | BN43: 0 | BO43: 0 | BP43: 0 | BQ43: 0 | BR43: 0 | BS43: 0 | BT43: 0 | BU43: 0 | BV43: 0 | BW43: 0 | BX43: 0 | BY43: 0 | BZ43: 0 | CA43: 0 | CB43: 0 | CC43: 0 | CD43: 0 | CE43: 0 | CF43: 0 | CG43: 0 | CH43: 0 | CI43: 0 | CJ43: 0 | CK43: 0 | CL43: 0 | CM43: 0 | CN43: 0
A44: 40 | C44: 0 | E44: 0 | I44: 0 | M44: 0 | Q44: 0 | U44: 0 | Y44: 0 | AC44: 0 | AG44: 0 | AK44: 0 | AO44: 0 | AS44: 0 | AW44: 0 | AZ44: 0 | BA44: 0 | BB44: 0 | BC44: 0 | BD44: 0 | BE44: 0 | BF44: 0 | BG44: 0 | BH44: 0 | BI44: 0 | BJ44: 0 | BK44: 0 | BL44: 0 | BM44: 0 | BN44: 0 | BO44: 0 | BP44: 0 | BQ44: 0 | BR44: 0 | BS44: 0 | BT44: 0 | BU44: 0 | BV44: 0 | BW44: 0 | BX44: 0 | BY44: 0 | BZ44: 0 | CA44: 0 | CB44: 0 | CC44: 0 | CD44: 0 | CE44: 0 | CF44: 0 | CG44: 0 | CH44: 0 | CI44: 0 | CJ44: 0 | CK44: 0 | CL44: 0 | CM44: 0 | CN44: 0
A45: 41 | C45: 0 | E45: 0 | I45: 0 | M45: 0 | Q45: 0 | U45: 0 | Y45: 0 | AC45: 0 | AG45: 0 | AK45: 0 | AO45: 0 | AS45: 0 | AW45: 0 | AZ45: 0 | BA45: 0 | BB45: 0 | BC45: 0 | BD45: 0 | BE45: 0 | BF45: 0 | BG45: 0 | BH45: 0 | BI45: 0 | BJ45: 0 | BK45: 0 | BL45: 0 | BM45: 0 | BN45: 0 | BO45: 0 | BP45: 0 | BQ45: 0 | BR45: 0 | BS45: 0 | BT45: 0 | BU45: 0 | BV45: 0 | BW45: 0 | BX45: 0 | BY45: 0 | BZ45: 0 | CA45: 0 | CB45: 0 | CC45: 0 | CD45: 0 | CE45: 0 | CF45: 0 | CG45: 0 | CH45: 0 | CI45: 0 | CJ45: 0 | CK45: 0 | CL45: 0 | CM45: 0 | CN45: 0
A46: 42 | C46: 0 | E46: 0 | I46: 0 | M46: 0 | Q46: 0 | U46: 0 | Y46: 0 | AC46: 0 | AG46: 0 | AK46: 0 | AO46: 0 | AS46: 0 | AW46: 0 | AZ46: 0 | BA46: 0 | BB46: 0 | BC46: 0 | BD46: 0 | BE46: 0 | BF46: 0 | BG46: 0 | BH46: 0 | BI46: 0 | BJ46: 0 | BK46: 0 | BL46: 0 | BM46: 0 | BN46: 0 | BO46: 0 | BP46: 0 | BQ46: 0 | BR46: 0 | BS46: 0 | BT46: 0 | BU46: 0 | BV46: 0 | BW46: 0 | BX46: 0 | BY46: 0 | BZ46: 0 | CA46: 0 | CB46: 0 | CC46: 0 | CD46: 0 | CE46: 0 | CF46: 0 | CG46: 0 | CH46: 0 | CI46: 0 | CJ46: 0 | CK46: 0 | CL46: 0 | CM46: 0 | CN46: 0
A47: 43 | C47: 0 | E47: 0 | I47: 0 | M47: 0 | Q47: 0 | U47: 0 | Y47: 0 | AC47: 0 | AG47: 0 | AK47: 0 | AO47: 0 | AS47: 0 | AW47: 0 | AZ47: 0 | BA47: 0 | BB47: 0 | BC47: 0 | BD47: 0 | BE47: 0 | BF47: 0 | BG47: 0 | BH47: 0 | BI47: 0 | BJ47: 0 | BK47: 0 | BL47: 0 | BM47: 0 | BN47: 0 | BO47: 0 | BP47: 0 | BQ47: 0 | BR47: 0 | BS47: 0 | BT47: 0 | BU47: 0 | BV47: 0 | BW47: 0 | BX47: 0 | BY47: 0 | BZ47: 0 | CA47: 0 | CB47: 0 | CC47: 0 | CD47: 0 | CE47: 0 | CF47: 0 | CG47: 0 | CH47: 0 | CI47: 0 | CJ47: 0 | CK47: 0 | CL47: 0 | CM47: 0 | CN47: 0
A48: 44 | C48: 0 | E48: 0 | I48: 0 | M48: 0 | Q48: 0 | U48: 0 | Y48: 0 | AC48: 0 | AG48: 0 | AK48: 0 | AO48: 0 | AS48: 0 | AW48: 0 | AZ48: 0 | BA48: 0 | BB48: 0 | BC48: 0 | BD48: 0 | BE48: 0 | BF48: 0 | BG48: 0 | BH48: 0 | BI48: 0 | BJ48: 0 | BK48: 0 | BL48: 0 | BM48: 0 | BN48: 0 | BO48: 0 | BP48: 0 | BQ48: 0 | BR48: 0 | BS48: 0 | BT48: 0 | BU48: 0 | BV48: 0 | BW48: 0 | BX48: 0 | BY48: 0 | BZ48: 0 | CA48: 0 | CB48: 0 | CC48: 0 | CD48: 0 | CE48: 0 | CF48: 0 | CG48: 0 | CH48: 0 | CI48: 0 | CJ48: 0 | CK48: 0 | CL48: 0 | CM48: 0 | CN48: 0
A49: 45 | C49: 0 | E49: 0 | I49: 0 | M49: 0 | Q49: 0 | U49: 0 | Y49: 0 | AC49: 0 | AG49: 0 | AK49: 0 | AO49: 0 | AS49: 0 | AW49: 0 | AZ49: 0 | BA49: 0 | BB49: 0 | BC49: 0 | BD49: 0 | BE49: 0 | BF49: 0 | BG49: 0 | BH49: 0 | BI49: 0 | BJ49: 0 | BK49: 0 | BL49: 0 | BM49: 0 | BN49: 0 | BO49: 0 | BP49: 0 | BQ49: 0 | BR49: 0 | BS49: 0 | BT49: 0 | BU49: 0 | BV49: 0 | BW49: 0 | BX49: 0 | BY49: 0 | BZ49: 0 | CA49: 0 | CB49: 0 | CC49: 0 | CD49: 0 | CE49: 0 | CF49: 0 | CG49: 0 | CH49: 0 | CI49: 0 | CJ49: 0 | CK49: 0 | CL49: 0 | CM49: 0 | CN49: 0

Sheet Class. elimin. 2 piores res
A1: 2024 | E1: OK | I1: OK | M1: OK | Q1: OK | U1: OK | Y1: OK | AC1: OK | AG1: OK | AK1: OK | AO1: OK | AS1: OK | AW1: OK
D2: 1ª etapa | H2: 2ª etapa | L2: 3ª etapa | P2: 4ª etapa | T2: 5ª etapa | X2: 6ª etapa | AB2: 7ª etapa | AF2: 8ª etapa | AJ2: 9ª etapa | AN2: 10ª etapa | AR2: 11ª etapa | AV2: 12ª etapa
D3: 2024-02-22 | H3: 2024-03-14 | L3: 2024-03-21 | P3: 2024-04-04 | T3: 2024-05-09 | X3: 2024-06-13 | AB3: 2024-07-11 | AF3: 2024-08-08 | AJ3: 2024-09-12 | AN3: 2024-10-10 | AR3: 2024-11-21 | AV3: 2024-12-12
B4: Nome do (a) Piloto (a) | C4: Pontuação Geral | D4: Posição | E4: Pontos | F4: Bônus | G4: Penalidade | H4: Posição | I4: Pontos | J4: Bônus | K4: Penalidade | L4: Posição | M4: Pontos | N4: Bônus | O4: Penalidade | P4: Posição | Q4: Pontos | R4: Bônus | S4: Penalidade | T4: Posição | U4: Pontos | V4: Bônus | W4: Penalidade | X4: Posição | Y4: Pontos | Z4: Bônus | AA4: Penalidade | AB4: Posição | AC4: Pontos | AD4: Bônus | AE4: Penalidade | AF4: Posição | AG4: Pontos | AH4: Bônus | AI4: Penalidade | AJ4: Posição | AK4: Pontos | AL4: Bônus | AM4: Penalidade | AN4: Posição | AO4: Pontos | AP4: Bônus | AQ4: Penalidade | AR4: Posição | AS4: Pontos | AT4: Bônus | AU4: Penalidade | AV4: Posição | AW4: Pontos | AX4: Bônus | AY4: Penalidade | AZ4: 1º LUGAR | BA4: 2º LUGAR | BB4: 3º LUGAR | BC4: 4º LUGAR | BD4: 5º LUGAR | BE4: 6º LUGAR | BF4: 7º LUGAR | BG4: 8º LUGAR | BH4: 9º LUGAR | BI4: 10º LUGAR | BJ4: 11º LUGAR | BK4: 12º LUGAR | BL4: 13º LUGAR | BM4: 14º LUGAR | BN4: 15º LUGAR | BO4: 16º LUGAR | BP4: 17º LUGAR | BQ4: 18º LUGAR | BR4: 19º LUGAR | BS4: 20º LUGAR | BT4: 21º LUGAR | BU4: 22º LUGAR | BV4: 23º LUGAR | BW4: 24º LUGAR | BX4: 25º LUGAR | BY4: 26º LUGAR | BZ4: 27º LUGAR | CA4: 28º LUGAR | CB4: 29º LUGAR | CC4: 30º LUGAR | CD4: 31º LUGAR | CE4: 32º LUGAR | CF4: 33º LUGAR | CG4: 34º LUGAR | CH4: 35º LUGAR | CI4: 36º LUGAR | CJ4: 37º LUGAR | CK4: 38º LUGAR | CL4: 39º LUGAR | CM4: 40º LUGAR | CN4: 41º LUGAR
A5: 1 | B5: Marcelo Mizrahy | C5: 154 | D5: 4 | E5: 13 | H5: 4 | I5: 13 | L5: 1 | M5: 20 | N5: 1 | P5: 1 | Q5: 20 | R5: 1 | T5: 9 | U5: 7* | X5: 5 | Y5: 11 | AB5: 6 | AC5: 10 | AF5: 2 | AG5: 17 | AJ5: 1 | AK5: 20 | AN5: 2 | AO5: 17 | AR5: 8 | AS5: 8* | AV5: 5 | AW5: 11 | AZ5: 3 | BA5: 2 | BB5: 0 | BC5: 2 | BD5: 2 | BE5: 1 | BF5: 0 | BG5: 1 | BH5: 1 | BI5: 0 | BJ5: 0 | BK5: 0 | BL5: 0 | BM5: 0 | BN5: 0 | BO5: 0 | BP5: 0 | BQ5: 0 | BR5: 0 | BS5: 0 | BT5: 0 | BU5: 0 | BV5: 0 | BW5: 0 | BX5: 0 | BY5: 0 | BZ5: 0 | CA5: 0 | CB5: 0 | CC5: 0 | CD5: 0 | CE5: 0 | CF5: 0 | CG5: 0 | CH5: 0 | CI5: 0 | CJ5: 0 | CK5: 0 | CL5: 0 | CM5: 0 | CN5: 0
A6: 2 | B6: Guilherme Janot | C6: 121 | D6: 1 | E6: 20 | F6: 1 | H6: 11 | I6: 5* | L6: 6 | M6: 10 | P6: 21 | Q6: 1 | S6: SIM | T6: 2 | U6: 17 | X6: 3 | Y6: 15 | AB6: 2 | AC6: 17 | AF6: 1 | AG6: 20 | AH6: 1 | AJ6: 2 | AK6: 17 | AO6: 0* | AR6: 21 | AS6: 1 | AU6: SIM | AV6: 28 | AW6: 1 | AY6: SIM | AZ6: 2 | BA6: 3 | BB6: 1 | BC6: 0 | BD6: 0 | BE6: 1 | BF6: 0 | BG6: 0 | BH6: 0 | BI6: 0 | BJ6: 1 | BK6: 0 | BL6: 0 | BM6: 0 | BN6: 0 | BO6: 0 | BP6: 0 | BQ6: 0 | BR6: 0 | BS6: 0 | BT6: 2 | BU6: 0 | BV6: 0 | BW6: 0 | BX6: 0 | BY6: 0 | BZ6: 0 | CA6: 1 | CB6: 0 | CC6: 0 | CD6: 0 | CE6: 0 | CF6: 0 | CG6: 0 | CH6: 0 | CI6: 0 | CJ6: 0 | CK6: 0 | CL6: 0 | CM6: 0 | CN6: 0
A7: 3 | B7: Wilson Cristofani | C7: 114 | D7: 8 | E7: 8 | I7: 0* | L7: 5 | M7: 11 | P7: 2 | Q7: 17 | T7: 1 | U7: 20 | X7: 8 | Y7: 8 | AB7: 16 | AC7: 1 | AG7: 0* | AJ7: 9 | AK7: 7 | AN7: 8 | AO7: 8 | AR7: 1 | AS7: 20 | AT7: 1 | AV7: 4 | AW7: 13 | AZ7: 2 | BA7: 1 | BB7: 0 | BC7: 1 | BD7: 1 | BE7: 0 | BF7: 0 | BG7: 3 | BH7: 1 | BI7: 0 | BJ7: 0 | BK7: 0 | BL7: 0 | BM7: 0 | BN7: 0 | BO7: 1 | BP7: 0 | BQ7: 0 | BR7: 0 | BS7: 0 | BT7: 0 | BU7: 0 | BV7: 0 | BW7: 0 | BX7: 0 | BY7: 0 | BZ7: 0 | CA7: 0 | CB7: 0 | CC7: 0 | CD7: 0 | CE7: 0 | CF7: 0 | CG7: 0 | CH7: 0 | CI7: 0 | CJ7: 0 | CK7: 0 | CL7: 0 | CM7: 0 | CN7: 0
A8: 4 | B8: Álvaro Paiva | C8: 110 | D8: 10 | E8: 6 | H8: 8 | I8: 8 | L8: 4 | M8: 13 | P8: 15 | Q8: 1* | T8: 6 | U8: 10 | X8: 11 | Y8: 5* | AB8: 1 | AC8: 20 | AF8: 7 | AG8: 9 | AJ8: 7 | AK8: 9 | AL8: 1 | AN8: 6 | AO8: 10 | AR8: 10 | AS8: 6 | AV8: 2 | AW8: 17 | AX8: 1 | AZ8: 1 | BA8: 1 | BB8: 0 | BC8: 1 | BD8: 0 | BE8: 2 | BF8: 2 | BG8: 1 | BH8: 0 | BI8: 2 | BJ8: 1 | BK8: 0 | BL8: 0 | BM8: 0 | BN8: 1 | BO8: 0 | BP8: 0 | BQ8: 0 | BR8: 0 | BS8: 0 | BT8: 0 | BU8: 0 | BV8: 0 | BW8: 0 | BX8: 0 | BY8: 0 | BZ8: 0 | CA8: 0 | CB8: 0 | CC8: 0 | CD8: 0 | CE8: 0 | CF8: 0 | CG8: 0 | CH8: 0 | CI8: 0 | CJ8: 0 | CK8: 0 | CL8: 0 | CM8: 0 | CN8: 0
A9: 5 | B9: Eduardo Dias | C9: 108 | D9: 5 | E9: 11 | H9: 6 | I9: 10 | L9: 7 | M9: 9 | P9: 13 | Q9: 3* | T9: 18 | U9: 1 | W9: SIM | X9: 0 | Y9: 0 | AA9: SIM | AB9: 7 | AC9: 9 | AF9: 3 | AG9: 15 | AJ9: 8 | AK9: 8* | AN9: 3 | AO9: 15 | AP9: 1 | AR9: 2 | AS9: 17 | AV9: 1 | AW9: 20 | AZ9: 1 | BA9: 1 | BB9: 2 | BC9: 0 | BD9: 1 | BE9: 1 | BF9: 2 | BG9: 1 | BH9: 0 | BI9: 0 | BJ9: 0 | BK9: 0 | BL9: 1 | BM9: 0 | BN9: 0 | BO9: 0 | BP9: 0 | BQ9: 1 | BR9: 0 | BS9: 0 | BT9: 0 | BU9: 0 | BV9: 0 | BW9: 0 | BX9: 0 | BY9: 0 | BZ9: 0 | CA9: 0 | CB9: 0 | CC9: 0 | CD9: 0 | CE9: 0 | CF9: 0 | CG9: 0 | CH9: 0 | CI9: 0 | CJ9: 0 | CK9: 0 | CL9: 0 | CM9: 0 | CN9: 0
A10: 6 | B10: Alexandre Melillo | C10: 104 | D10: 2 | E10: 17 | H10: 9 | I10: 7 | L10: 9 | M10: 7 | P10: 8 | Q10: 8 | T10: 4 | U10: 13 | X10: 4 | Y10: 13 | AB10: 14 | AC10: 2* | AF10: 10 | AG10: 6* | AJ10: 5 | AK10: 11 | AN10: 5 | AO10: 11 | AR10: 9 | AS10: 7 | AV10: 6 | AW10: 10 | AZ10: 0 | BA10: 1 | BB10: 0 | BC10: 2 | BD10: 2 | BE10: 1 | BF10: 0 | BG10: 1 | BH10: 3 | BI10: 1 | BJ10: 0 | BK10: 0 | BL10: 0 | BM10: 1 | BN10: 0 | BO10: 0 | BP10: 0 | BQ10: 0 | BR10: 0 | BS10: 0 | BT10: 0 | BU10: 0 | BV10: 0 | BW10: 0 | BX10: 0 | BY10: 0 | BZ10: 0 | CA10: 0 | CB10: 0 | CC10: 0 | CD10: 0 | CE10: 0 | CF10: 0 | CG10: 0 | CH10: 0 | CI10: 0 | CJ10: 0 | CK10: 0 | CL10: 0 | CM10: 0 | CN10: 0
A11: 7 | B11: Carlos Sampaio | C11: 91 | D11: 9 | E11: 7 | H11: 13 | I11: 3* | L11: 2 | M11: 17 | P11: 5 | Q11: 11 | T11: 10 | U11: 6 | X11: 6 | Y11: 10 | AB11: 9 | AC11: 7 | AF11: 17 | AG11: 1 | AI11: SIM | AJ11: 14 | AK11: 2* | AN11: 9 | AO11: 7 | AR11: 6 | AS11: 10 | AV11: 3 | AW11: 15 | AZ11: 0 | BA11: 1 | BB11: 1 | BC11: 0 | BD11: 1 | BE11: 2 | BF11: 0 | BG11: 0 | BH11: 3 | BI11: 1 | BJ11: 0 | BK11: 0 | BL11: 1 | BM11: 1 | BN11: 0 | BO11: 0 | BP11: 1 | BQ11: 0 | BR11: 0 | BS11: 0 | BT11: 0 | BU11: 0 | BV11: 0 | BW11: 0 | BX11: 0 | BY11: 0 | BZ11: 0 | CA11: 0 | CB11: 0 | CC11: 0 | CD11: 0 | CE11: 0 | CF11: 0 | CG11: 0 | CH11: 0 | CI11: 0 | CJ11: 0 | CK11: 0 | CL11: 0 | CM11: 0 | CN11: 0
A12: 8 | B12: Marcelo Surerus | C12: 89 | E12: 0* | H12: 3 | I12: 15 | L12: 11 | M12: 5 | P12: 4 | Q12: 13 | T12: 13 | U12: 3 | Y12: 0* | AB12: 10 | AC12: 6 | AF12: 12 | AG12: 4 | AJ12: 6 | AK12: 10 | AN12: 4 | AO12: 13 | AR12: 4 | AS12: 13 | AV12: 9 | AW12: 7 | AZ12: 0 | BA12: 0 | BB12: 1 | BC12: 3 | BD12: 0 | BE12: 1 | BF12: 0 | BG12: 0 | BH12: 1 | BI12: 1 | BJ12: 1 | BK12: 1 | BL12: 1 | BM12: 0 | BN12: 0 | BO12: 0 | BP12: 0 | BQ12: 0 | BR12: 0 | BS12: 0 | BT12: 0 | BU12: 0 | BV12: 0 | BW12: 0 | BX12: 0 | BY12: 0 | BZ12: 0 | CA12: 0 | CB12: 0 | CC12: 0 | CD12: 0 | CE12: 0 | CF12: 0 | CG12: 0 | CH12: 0 | CI12: 0 | CJ12: 0 | CK12: 0 | CL12: 0 | CM12: 0 | CN12: 0
A13: 9 | B13: Jarbas Reis | C13: 87 | D13: 7 | E13: 9 | H13: 7 | I13: 9 | L13: 17 | M13: 1* | P13: 6 | Q13: 10 | T13: 5 | U13: 11 | X13: 7 | Y13: 9 | AB13: 13 | AC13: 3 | AF13: 9 | AG13: 7 | AK13: 0* | AN13: 7 | AO13: 9 | AR13: 5 | AS13: 11 | AV13: 7 | AW13: 9 | AZ13: 0 | BA13: 0 | BB13: 0 | BC13: 0 | BD13: 2 | BE13: 1 | BF13: 5 | BG13: 0 | BH13: 1 | BI13: 0 | BJ13: 0 | BK13: 0 | BL13: 1 | BM13: 0 | BN13: 0 | BO13: 0 | BP13: 1 | BQ13: 0 | BR13: 0 | BS13: 0 | BT13: 0 | BU13: 0 | BV13: 0 | BW13: 0 | BX13: 0 | BY13: 0 | BZ13: 0 | CA13: 0 | CB13: 0 | CC13: 0 | CD13: 0 | CE13: 0 | CF13: 0 | CG13: 0 | CH13: 0 | CI13: 0 | CJ13: 0 | CK13: 0 | CL13: 0 | CM13: 0 | CN13: 0
A14: 10 | B14: Euclides Almeida | C14: 77 | E14: 0* | H14: 2 | I14: 17 | L14: 12 | M14: 4 | P14: 11 | Q14: 5 | U14: 0* | X14: 9 | Y14: 7 | AB14: 5 | AC14: 11 | AF14: 13 | AG14: 3 | AJ14: 10 | AK14: 6 | AN14: 19 | AO14: 1 | AQ14: SIM | AR14: 3 | AS14: 15 | AV14: 8 | AW14: 8 | AZ14: 0 | BA14: 1 | BB14: 1 | BC14: 0 | BD14: 1 | BE14: 0 | BF14: 0 | BG14: 1 | BH14: 1 | BI14: 1 | BJ14: 1 | BK14: 1 | BL14: 1 | BM14: 0 | BN14: 0 | BO14: 0 | BP14: 0 | BQ14: 0 | BR14: 1 | BS14: 0 | BT14: 0 | BU14: 0 | BV14: 0 | BW14: 0 | BX14: 0 | BY14: 0 | BZ14: 0 | CA14: 0 | CB14: 0 | CC14: 0 | CD14: 0 | CE14: 0 | CF14: 0 | CG14: 0 | CH14: 0 | CI14: 0 | CJ14: 0 | CK14: 0 | CL14: 0 | CM14: 0 | CN14: 0
A15: 11 | B15: Rodrigo Mercadante | C15: 69 | D15: 6 | E15: 10 | I15: 0* | L15: 10 | M15: 6 | P15: 3 | Q15: 15 | U15: 0* | X15: 2 | Y15: 17 | AB15: 4 | AC15: 13 | AF15: 8 | AG15: 8 | AJ15: 11 | AK15: 5 | AO15: 0 | AS15: 0 | AW15: 0 | AY15: -5 | AZ15: 0 | BA15: 1 | BB15: 1 | BC15: 1 | BD15: 0 | BE15: 1 | BF15: 0 | BG15: 1 | BH15: 0 | BI15: 1 | BJ15: 1 | BK15: 0 | BL15: 0 | BM15: 0 | BN15: 0 | BO15: 0 | BP15: 0 | BQ15: 0 | BR15: 0 | BS15: 0 | BT15: 0 | BU15: 0 | BV15: 0 | BW15: 0 | BX15: 0 | BY15: 0 | BZ15: 0 | CA15: 0 | CB15: 0 | CC15: 0 | CD15: 0 | CE15: 0 | CF15: 0 | CG15: 0 | CH15: 0 | CI15: 0 | CJ15: 0 | CK15: 0 | CL15: 0 | CM15: 0 | CN15: 0
A16: 12 | B16: Marcelo Sant'anna | C16: 63 | D16: 11 | E16: 5 | H16: 1 | I16: 20 | J16: 1 | L16: 15 | M16: 1 | P16: 17 | Q16: 1 | S16: SIM | T16: 8 | U16: 8 | X16: 1 | Y16: 20 | Z16: 1 | AB16: 12 | AC16: 4 | AF16: 14 | AG16: 2 | AJ16: 33 | AK16: 0 | AM16: SIM | AO16: 0* | AS16: 0* | AW16: 0 | AZ16: 2 | BA16: 0 | BB16: 0 | BC16: 0 | BD16: 0 | BE16: 0 | BF16: 0 | BG16: 1 | BH16: 0 | BI16: 0 | BJ16: 1 | BK16: 1 | BL16: 0 | BM16: 1 | BN16: 1 | BO16: 0 | BP16: 1 | BQ16: 0 | BR16: 0 | BS16: 0 | BT16: 0 | BU16: 0 | BV16: 0 | BW16: 0 | BX16: 0 | BY16: 0 | BZ16: 0 | CA16: 0 | CB16: 0 | CC16: 0 | CD16: 0 | CE16: 0 | CF16: 1 | CG16: 0 | CH16: 0 | CI16: 0 | CJ16: 0 | CK16: 0 | CL16: 0 | CM16: 0 | CN16: 0
A17: 13 | B17: Gijo | C17: 42 | E17: 0* | G17: -5 | H17: 12 | I17: 4 | L17: 3 | M17: 15 | P17: 10 | Q17: 6 | T17: 3 | U17: 15 | V17: 1 | Y17: 0* | AB17: 11 | AC17: 5 | AF17: 4 | AG17: 13 | AJ17: 13 | AK17: 3 | AO17: 0 | AQ17: -5 | AS17: 0 | AU17: -5 | AW17: 0 | AY17: -5 | AZ17: 0 | BA17: 0 | BB17: 2 | BC17: 1 | BD17: 0 | BE17: 0 | BF17: 0 | BG17: 0 | BH17: 0 | BI17: 1 | BJ17: 1 | BK17: 1 | BL17: 1 | BM17: 0 | BN17: 0 | BO17: 0 | BP17: 0 | BQ17: 0 | BR17: 0 | BS17: 0 | BT17: 0 | BU17: 0 | BV17: 0 | BW17: 0 | BX17: 0 | BY17: 0 | BZ17: 0 | CA17: 0 | CB17: 0 | CC17: 0 | CD17: 0 | CE17: 0 | CF17: 0 | CG17: 0 | CH17: 0 | CI17: 0 | CJ17: 0 | CK17: 0 | CL17: 0 | CM17: 0 | CN17: 0
A18: 14 | B18: Carlos Eduardo | C18: 42 | E18: 0* | H18: 15 | I18: 1 | L18: 8 | M18: 8 | P18: 7 | Q18: 9 | T18: 11 | U18: 5 | Y18: 0* | AB18: 3 | AC18: 15 | AF18: 6 | AG18: 10 | AJ18: 12 | AK18: 4 | AO18: 0 | AS18: 0 | AU18: -5 | AW18: 0 | AY18: -5 | AZ18: 0 | BA18: 0 | BB18: 1 | BC18: 0 | BD18: 0 | BE18: 1 | BF18: 1 | BG18: 1 | BH18: 0 | BI18: 0 | BJ18: 1 | BK18: 1 | BL18: 0 | BM18: 0 | BN18: 1 | BO18: 0 | BP18: 0 | BQ18: 0 | BR18: 0 | BS18: 0 | BT18: 0 | BU18: 0 | BV18: 0 | BW18: 0 | BX18: 0 | BY18: 0 | BZ18: 0 | CA18: 0 | CB18: 0 | CC18: 0 | CD18: 0 | CE18: 0 | CF18: 0 | CG18: 0 | CH18: 0 | CI18: 0 | CJ18: 0 | CK18: 0 | CL18: 0 | CM18: 0 | CN18: 0
A19: 15 | B19: Lucio Chequer | C19: 32 | D19: 13 | E19: 3 | H19: 14 | I19: 2 | L19: 14 | M19: 2 | Q19: 0* | T19: 12 | U19: 4 | X19: 10 | Y19: 6 | AB19: 15 | AC19: 1 | AF19: 11 | AG19: 5 | AJ19: 4 | AK19: 13 | AO19: 0* | AR19: 17 | AS19: 1 | AU19: SIM | AW19: 0 | AY19: -5 | AZ19: 0 | BA19: 0 | BB19: 0 | BC19: 1 | BD19: 0 | BE19: 0 | BF19: 0 | BG19: 0 | BH19: 0 | BI19: 1 | BJ19: 1 | BK19: 1 | BL19: 1 | BM19: 2 | BN19: 1 | BO19: 0 | BP19: 1 | BQ19: 0 | BR19: 0 | BS19: 0 | BT19: 0 | BU19: 0 | BV19: 0 | BW19: 0 | BX19: 0 | BY19: 0 | BZ19: 0 | CA19: 0 | CB19: 0 | CC19: 0 | CD19: 0 | CE19: 0 | CF19: 0 | CG19: 0 | CH19: 0 | CI19: 0 | CJ19: 0 | CK19: 0 | CL19: 0 | CM19: 0 | CN19: 0
A20: 16 | B20: Marcelo Clemente | C20: 28 | E20: 0* | I20: 0* | K20: -5 | M20: 0 | Q20: 0 | S20: -5 | U20: 0 | Y20: 0 | AA20: -5 | AB20: 8 | AC20: 8 | AD20: 1 | AG20: 0 | AI20: -5 | AJ20: 3 | AK20: 15 | AN20: 1 | AO20: 20 | AR20: 7 | AS20: 9 | AW20: 0 | AY20: -5 | AZ20: 1 | BA20: 0 | BB20: 1 | BC20: 0 | BD20: 0 | BE20: 0 | BF20: 1 | BG20: 1 | BH20: 0 | BI20: 0 | BJ20: 0 | BK20: 0 | BL20: 0 | BM20: 0 | BN20: 0 | BO20: 0 | BP20: 0 | BQ20: 0 | BR20: 0 | BS20: 0 | BT20: 0 | BU20: 0 | BV20: 0 | BW20: 0 | BX20: 0 | BY20: 0 | BZ20: 0 | CA20: 0 | CB20: 0 | CC20: 0 | CD20: 0 | CE20: 0 | CF20: 0 | CG20: 0 | CH20: 0 | CI20: 0 | CJ20: 0 | CK20: 0 | CL20: 0 | CM20: 0 | CN20: 0
A21: 17 | B21: Roberto Veloso | C21: 27 | D21: 3 | E21: 15 | H21: 10 | I21: 6 | L21: 16 | M21: 1 | P21: 9 | Q21: 7 | T21: 14 | U21: 2 | Y21: 0* | AC21: 0* | AF21: 5 | AG21: 11 | AK21: 0 | AO21: 0 | AQ21: -5 | AS21: 0 | AU21: -5 | AW21: 0 | AY21: -5 | AZ21: 0 | BA21: 0 | BB21: 1 | BC21: 0 | BD21: 1 | BE21: 0 | BF21: 0 | BG21: 0 | BH21: 1 | BI21: 1 | BJ21: 0 | BK21: 0 | BL21: 0 | BM21: 1 | BN21: 0 | BO21: 1 | BP21: 0 | BQ21: 0 | BR21: 0 | BS21: 0 | BT21: 0 | BU21: 0 | BV21: 0 | BW21: 0 | BX21: 0 | BY21: 0 | BZ21: 0 | CA21: 0 | CB21: 0 | CC21: 0 | CD21: 0 | CE21: 0 | CF21: 0 | CG21: 0 | CH21: 0 | CI21: 0 | CJ21: 0 | CK21: 0 | CL21: 0 | CM21: 0 | CN21: 0
A22: 18 | B22: Ivan Renault | C22: 27 | D22: 14 | E22: 2 | H22: 5 | I22: 11 | L22: 13 | M22: 3 | P22: 14 | Q22: 2 | T22: 7 | U22: 9 | Y22: 0* | AC22: 0* | AG22: 0 | AK22: 0 | AO22: 0 | AS22: 0 | AW22: 0 | AZ22: 0 | BA22: 0 | BB22: 0 | BC22: 0 | BD22: 1 | BE22: 0 | BF22: 1 | BG22: 0 | BH22: 0 | BI22: 0 | BJ22: 0 | BK22: 0 | BL22: 1 | BM22: 2 | BN22: 0 | BO22: 0 | BP22: 0 | BQ22: 0 | BR22: 0 | BS22: 0 | BT22: 0 | BU22: 0 | BV22: 0 | BW22: 0 | BX22: 0 | BY22: 0 | BZ22: 0 | CA22: 0 | CB22: 0 | CC22: 0 | CD22: 0 | CE22: 0 | CF22: 0 | CG22: 0 | CH22: 0 | CI22: 0 | CJ22: 0 | CK22: 0 | CL22: 0 | CM22: 0 | CN22: 0
A23: 19 | B23: Marco Sant’anna | C23: 0 | D23: 12 | E23: 4 | I23: 0* | K23: -5 | M23: 0* | Q23: 0 | S23: -5 | U23: 0 | W23: -5 | Y23: 0 | AA23: -5 | AC23: 0 | AE23: -5 | AG23: 0 | AI23: -5 | AJ23: 15 | AK23: 1 | AO23: 0 | AQ23: -5 | AS23: 0 | AU23: -5 | AV23: 11 | AW23: 5 | AY23: -5 | AZ23: 0 | BA23: 0 | BB23: 0 | BC23: 0 | BD23: 0 | BE23: 0 | BF23: 0 | BG23: 0 | BH23: 0 | BI23: 0 | BJ23: 1 | BK23: 1 | BL23: 0 | BM23: 0 | BN23: 1 | BO23: 0 | BP23: 0 | BQ23: 0 | BR23: 0 | BS23: 0 | BT23: 0 | BU23: 0 | BV23: 0 | BW23: 0 | BX23: 0 | BY23: 0 | BZ23: 0 | CA23: 0 | CB23: 0 | CC23: 0 | CD23: 0 | CE23: 0 | CF23: 0 | CG23: 0 | CH23: 0 | CI23: 0 | CJ23: 0 | CK23: 0 | CL23: 0 | CM23: 0 | CN23: 0
A24: 20 | B24: Claudio Junqueira | C24: 0 | E24: 0* | I24: 0* | K24: -5 | M24: 0 | O24: -5 | Q24: 0 | S24: -5 | U24: 0 | W24: -5 | Y24: 0 | AA24: -5 | AC24: 0 | AE24: -5 | AG24: 0 | AI24: -5 | AK24: 0 | AM24: -5 | AO24: 0 | AQ24: -5 | AS24: 0 | AU24: -5 | AW24: 0 | AY24: -5 | AZ24: 0 | BA24: 0 | BB24: 0 | BC24: 0 | BD24: 0 | BE24: 0 | BF24: 0 | BG24: 0 | BH24: 0 | BI24: 0 | BJ24: 0 | BK24: 0 | BL24: 0 | BM24: 0 | BN24: 0 | BO24: 0 | BP24: 0 | BQ24: 0 | BR24: 0 | BS24: 0 | BT24: 0 | BU24: 0 | BV24: 0 | BW24: 0 | BX24: 0 | BY24: 0 | BZ24: 0 | CA24: 0 | CB24: 0 | CC24: 0 | CD24: 0 | CE24: 0 | CF24: 0 | CG24: 0 | CH24: 0 | CI24: 0 | CJ24: 0 | CK24: 0 | CL24: 0 | CM24: 0 | CN24: 0
A25: 21 | C25: 0 | E25: 0 | I25: 0 | M25: 0 | Q25: 0 | U25: 0 | Y25: 0 | AC25: 0 | AG25: 0 | AK25: 0 | AO25: 0 | AS25: 0 | AW25: 0 | AZ25: 0 | BA25: 0 | BB25: 0 | BC25: 0 | BD25: 0 | BE25: 0 | BF25: 0 | BG25: 0 | BH25: 0 | BI25: 0 | BJ25: 0 | BK25: 0 | BL25: 0 | BM25: 0 | BN25: 0 | BO25: 0 | BP25: 0 | BQ25: 0 | BR25: 0 | BS25: 0 | BT25: 0 | BU25: 0 | BV25: 0 | BW25: 0 | BX25: 0 | BY25: 0 | BZ25: 0 | CA25: 0 | CB25: 0 | CC25: 0 | CD25: 0 | CE25: 0 | CF25: 0 | CG25: 0 | CH25: 0 | CI25: 0 | CJ25: 0 | CK25: 0 | CL25: 0 | CM25: 0 | CN25: 0
A26: 22 | C26: 0 | E26: 0 | I26: 0 | M26: 0 | Q26: 0 | U26: 0 | Y26: 0 | AC26: 0 | AG26: 0 | AK26: 0 | AO26: 0 | AS26: 0 | AW26: 0 | AZ26: 0 | BA26: 0 | BB26: 0 | BC26: 0 | BD26: 0 | BE26: 0 | BF26: 0 | BG26: 0 | BH26: 0 | BI26: 0 | BJ26: 0 | BK26: 0 | BL26: 0 | BM26: 0 | BN26: 0 | BO26: 0 | BP26: 0 | BQ26: 0 | BR26: 0 | BS26: 0 | BT26: 0 | BU26: 0 | BV26: 0 | BW26: 0 | BX26: 0 | BY26: 0 | BZ26: 0 | CA26: 0 | CB26: 0 | CC26: 0 | CD26: 0 | CE26: 0 | CF26: 0 | CG26: 0 | CH26: 0 | CI26: 0 | CJ26: 0 | CK26: 0 | CL26: 0 | CM26: 0 | CN26: 0
A27: 23 | C27: 0 | E27: 0 | I27: 0 | M27: 0 | Q27: 0 | U27: 0 | Y27: 0 | AC27: 0 | AG27: 0 | AK27: 0 | AO27: 0 | AS27: 0 | AW27: 0 | AZ27: 0 | BA27: 0 | BB27: 0 | BC27: 0 | BD27: 0 | BE27: 0 | BF27: 0 | BG27: 0 | BH27: 0 | BI27: 0 | BJ27: 0 | BK27: 0 | BL27: 0 | BM27: 0 | BN27: 0 | BO27: 0 | BP27: 0 | BQ27: 0 | BR27: 0 | BS27: 0 | BT27: 0 | BU27: 0 | BV27: 0 | BW27: 0 | BX27: 0 | BY27: 0 | BZ27: 0 | CA27: 0 | CB27: 0 | CC27: 0 | CD27: 0 | CE27: 0 | CF27: 0 | CG27: 0 | CH27: 0 | CI27: 0 | CJ27: 0 | CK27: 0 | CL27: 0 | CM27: 0 | CN27: 0
A28: 24 | C28: 0 | E28: 0 | I28: 0 | M28: 0 | Q28: 0 | U28: 0 | Y28: 0 | AC28: 0 | AG28: 0 | AK28: 0 | AO28: 0 | AS28: 0 | AW28: 0 | AZ28: 0 | BA28: 0 | BB28: 0 | BC28: 0 | BD28: 0 | BE28: 0 | BF28: 0 | BG28: 0 | BH28: 0 | BI28: 0 | BJ28: 0 | BK28: 0 | BL28: 0 | BM28: 0 | BN28: 0 | BO28: 0 | BP28: 0 | BQ28: 0 | BR28: 0 | BS28: 0 | BT28: 0 | BU28: 0 | BV28: 0 | BW28: 0 | BX28: 0 | BY28: 0 | BZ28: 0 | CA28: 0 | CB28: 0 | CC28: 0 | CD28: 0 | CE28: 0 | CF28: 0 | CG28: 0 | CH28: 0 | CI28: 0 | CJ28: 0 | CK28: 0 | CL28: 0 | CM28: 0 | CN28: 0
A29: 25 | C29: 0 | E29: 0 | I29: 0 | M29: 0 | Q29: 0 | U29: 0 | Y29: 0 | AC29: 0 | AG29: 0 | AK29: 0 | AO29: 0 | AS29: 0 | AW29: 0 | AZ29: 0 | BA29: 0 | BB29: 0 | BC29: 0 | BD29: 0 | BE29: 0 | BF29: 0 | BG29: 0 | BH29: 0 | BI29: 0 | BJ29: 0 | BK29: 0 | BL29: 0 | BM29: 0 | BN29: 0 | BO29: 0 | BP29: 0 | BQ29: 0 | BR29: 0 | BS29: 0 | BT29: 0 | BU29: 0 | BV29: 0 | BW29: 0 | BX29: 0 | BY29: 0 | BZ29: 0 | CA29: 0 | CB29: 0 | CC29: 0 | CD29: 0 | CE29: 0 | CF29: 0 | CG29: 0 | CH29: 0 | CI29: 0 | CJ29: 0 | CK29: 0 | CL29: 0 | CM29: 0 | CN29: 0
A30: 26 | C30: 0 | E30: 0 | I30: 0 | M30: 0 | Q30: 0 | U30: 0 | Y30: 0 | AC30: 0 | AG30: 0 | AK30: 0 | AO30: 0 | AS30: 0 | AW30: 0 | AZ30: 0 | BA30: 0 | BB30: 0 | BC30: 0 | BD30: 0 | BE30: 0 | BF30: 0 | BG30: 0 | BH30: 0 | BI30: 0 | BJ30: 0 | BK30: 0 | BL30: 0 | BM30: 0 | BN30: 0 | BO30: 0 | BP30: 0 | BQ30: 0 | BR30: 0 | BS30: 0 | BT30: 0 | BU30: 0 | BV30: 0 | BW30: 0 | BX30: 0 | BY30: 0 | BZ30: 0 | CA30: 0 | CB30: 0 | CC30: 0 | CD30: 0 | CE30: 0 | CF30: 0 | CG30: 0 | CH30: 0 | CI30: 0 | CJ30: 0 | CK30: 0 | CL30: 0 | CM30: 0 | CN30: 0
A31: 27 | C31: 0 | E31: 0 | I31: 0 | M31: 0 | Q31: 0 | U31: 0 | Y31: 0 | AC31: 0 | AG31: 0 | AK31: 0 | AO31: 0 | AS31: 0 | AW31: 0 | AZ31: 0 | BA31: 0 | BB31: 0 | BC31: 0 | BD31: 0 | BE31: 0 | BF31: 0 | BG31: 0 | BH31: 0 | BI31: 0 | BJ31: 0 | BK31: 0 | BL31: 0 | BM31: 0 | BN31: 0 | BO31: 0 | BP31: 0 | BQ31: 0 | BR31: 0 | BS31: 0 | BT31: 0 | BU31: 0 | BV31: 0 | BW31: 0 | BX31: 0 | BY31: 0 | BZ31: 0 | CA31: 0 | CB31: 0 | CC31: 0 | CD31: 0 | CE31: 0 | CF31: 0 | CG31: 0 | CH31: 0 | CI31: 0 | CJ31: 0 | CK31: 0 | CL31: 0 | CM31: 0 | CN31: 0
A32: 28 | C32: 0 | E32: 0 | I32: 0 | M32: 0 | Q32: 0 | U32: 0 | Y32: 0 | AC32: 0 | AG32: 0 | AK32: 0 | AO32: 0 | AS32: 0 | AW32: 0 | AZ32: 0 | BA32: 0 | BB32: 0 | BC32: 0 | BD32: 0 | BE32: 0 | BF32: 0 | BG32: 0 | BH32: 0 | BI32: 0 | BJ32: 0 | BK32: 0 | BL32: 0 | BM32: 0 | BN32: 0 | BO32: 0 | BP32: 0 | BQ32: 0 | BR32: 0 | BS32: 0 | BT32: 0 | BU32: 0 | BV32: 0 | BW32: 0 | BX32: 0 | BY32: 0 | BZ32: 0 | CA32: 0 | CB32: 0 | CC32: 0 | CD32: 0 | CE32: 0 | CF32: 0 | CG32: 0 | CH32: 0 | CI32: 0 | CJ32: 0 | CK32: 0 | CL32: 0 | CM32: 0 | CN32: 0
A33: 29 | C33: 0 | E33: 0 | I33: 0 | M33: 0 | Q33: 0 | U33: 0 | Y33: 0 | AC33: 0 | AG33: 0 | AK33: 0 | AO33: 0 | AS33: 0 | AW33: 0 | AZ33: 0 | BA33: 0 | BB33: 0 | BC33: 0 | BD33: 0 | BE33: 0 | BF33: 0 | BG33: 0 | BH33: 0 | BI33: 0 | BJ33: 0 | BK33: 0 | BL33: 0 | BM33: 0 | BN33: 0 | BO33: 0 | BP33: 0 | BQ33: 0 | BR33: 0 | BS33: 0 | BT33: 0 | BU33: 0 | BV33: 0 | BW33: 0 | BX33: 0 | BY33: 0 | BZ33: 0 | CA33: 0 | CB33: 0 | CC33: 0 | CD33: 0 | CE33: 0 | CF33: 0 | CG33: 0 | CH33: 0 | CI33: 0 | CJ33: 0 | CK33: 0 | CL33: 0 | CM33: 0 | CN33: 0
A34: 30 | C34: 0 | E34: 0 | I34: 0 | M34: 0 | Q34: 0 | U34: 0 | Y34: 0 | AC34: 0 | AG34: 0 | AK34: 0 | AO34: 0 | AS34: 0 | AW34: 0 | AZ34: 0 | BA34: 0 | BB34: 0 | BC34: 0 | BD34: 0 | BE34: 0 | BF34: 0 | BG34: 0 | BH34: 0 | BI34: 0 | BJ34: 0 | BK34: 0 | BL34: 0 | BM34: 0 | BN34: 0 | BO34: 0 | BP34: 0 | BQ34: 0 | BR34: 0 | BS34: 0 | BT34: 0 | BU34: 0 | BV34: 0 | BW34: 0 | BX34: 0 | BY34: 0 | BZ34: 0 | CA34: 0 | CB34: 0 | CC34: 0 | CD34: 0 | CE34: 0 | CF34: 0 | CG34: 0 | CH34: 0 | CI34: 0 | CJ34: 0 | CK34: 0 | CL34: 0 | CM34: 0 | CN34: 0
A35: 31 | C35: 0 | E35: 0 | I35: 0 | M35: 0 | Q35: 0 | U35: 0 | Y35: 0 | AC35: 0 | AG35: 0 | AK35: 0 | AO35: 0 | AS35: 0 | AW35: 0 | AZ35: 0 | BA35: 0 | BB35: 0 | BC35: 0 | BD35: 0 | BE35: 0 | BF35: 0 | BG35: 0 | BH35: 0 | BI35: 0 | BJ35: 0 | BK35: 0 | BL35: 0 | BM35: 0 | BN35: 0 | BO35: 0 | BP35: 0 | BQ35: 0 | BR35: 0 | BS35: 0 | BT35: 0 | BU35: 0 | BV35: 0 | BW35: 0 | BX35: 0 | BY35: 0 | BZ35: 0 | CA35: 0 | CB35: 0 | CC35: 0 | CD35: 0 | CE35: 0 | CF35: 0 | CG35: 0 | CH35: 0 | CI35: 0 | CJ35: 0 | CK35: 0 | CL35: 0 | CM35: 0 | CN35: 0
A36: 32 | C36: 0 | E36: 0 | I36: 0 | M36: 0 | Q36: 0 | U36: 0 | Y36: 0 | AC36: 0 | AG36: 0 | AK36: 0 | AO36: 0 | AS36: 0 | AW36: 0 | AZ36: 0 | BA36: 0 | BB36: 0 | BC36: 0 | BD36: 0 | BE36: 0 | BF36: 0 | BG36: 0 | BH36: 0 | BI36: 0 | BJ36: 0 | BK36: 0 | BL36: 0 | BM36: 0 | BN36: 0 | BO36: 0 | BP36: 0 | BQ36: 0 | BR36: 0 | BS36: 0 | BT36: 0 | BU36: 0 | BV36: 0 | BW36: 0 | BX36: 0 | BY36: 0 | BZ36: 0 | CA36: 0 | CB36: 0 | CC36: 0 | CD36: 0 | CE36: 0 | CF36: 0 | CG36: 0 | CH36: 0 | CI36: 0 | CJ36: 0 | CK36: 0 | CL36: 0 | CM36: 0 | CN36: 0
A37: 33 | C37: 0 | E37: 0 | I37: 0 | M37: 0 | Q37: 0 | U37: 0 | Y37: 0 | AC37: 0 | AG37: 0 | AK37: 0 | AO37: 0 | AS37: 0 | AW37: 0 | AZ37: 0 | BA37: 0 | BB37: 0 | BC37: 0 | BD37: 0 | BE37: 0 | BF37: 0 | BG37: 0 | BH37: 0 | BI37: 0 | BJ37: 0 | BK37: 0 | BL37: 0 | BM37: 0 | BN37: 0 | BO37: 0 | BP37: 0 | BQ37: 0 | BR37: 0 | BS37: 0 | BT37: 0 | BU37: 0 | BV37: 0 | BW37: 0 | BX37: 0 | BY37: 0 | BZ37: 0 | CA37: 0 | CB37: 0 | CC37: 0 | CD37: 0 | CE37: 0 | CF37: 0 | CG37: 0 | CH37: 0 | CI37: 0 | CJ37: 0 | CK37: 0 | CL37: 0 | CM37: 0 | CN37: 0
A38: 34 | C38: 0 | E38: 0 | I38: 0 | M38: 0 | Q38: 0 | U38: 0 | Y38: 0 | AC38: 0 | AG38: 0 | AK38: 0 | AO38: 0 | AS38: 0 | AW38: 0 | AZ38: 0 | BA38: 0 | BB38: 0 | BC38: 0 | BD38: 0 | BE38: 0 | BF38: 0 | BG38: 0 | BH38: 0 | BI38: 0 | BJ38: 0 | BK38: 0 | BL38: 0 | BM38: 0 | BN38: 0 | BO38: 0 | BP38: 0 | BQ38: 0 | BR38: 0 | BS38: 0 | BT38: 0 | BU38: 0 | BV38: 0 | BW38: 0 | BX38: 0 | BY38: 0 | BZ38: 0 | CA38: 0 | CB38: 0 | CC38: 0 | CD38: 0 | CE38: 0 | CF38: 0 | CG38: 0 | CH38: 0 | CI38: 0 | CJ38: 0 | CK38: 0 | CL38: 0 | CM38: 0 | CN38: 0
A39: 35 | C39: 0 | E39: 0 | I39: 0 | M39: 0 | Q39: 0 | U39: 0 | Y39: 0 | AC39: 0 | AG39: 0 | AK39: 0 | AO39: 0 | AS39: 0 | AW39: 0 | AZ39: 0 | BA39: 0 | BB39: 0 | BC39: 0 | BD39: 0 | BE39: 0 | BF39: 0 | BG39: 0 | BH39: 0 | BI39: 0 | BJ39: 0 | BK39: 0 | BL39: 0 | BM39: 0 | BN39: 0 | BO39: 0 | BP39: 0 | BQ39: 0 | BR39: 0 | BS39: 0 | BT39: 0 | BU39: 0 | BV39: 0 | BW39: 0 | BX39: 0 | BY39: 0 | BZ39: 0 | CA39: 0 | CB39: 0 | CC39: 0 | CD39: 0 | CE39: 0 | CF39: 0 | CG39: 0 | CH39: 0 | CI39: 0 | CJ39: 0 | CK39: 0 | CL39: 0 | CM39: 0 | CN39: 0
A40: 36 | C40: 0 | E40: 0 | I40: 0 | M40: 0 | Q40: 0 | U40: 0 | Y40: 0 | AC40: 0 | AG40: 0 | AK40: 0 | AO40: 0 | AS40: 0 | AW40: 0 | AZ40: 0 | BA40: 0 | BB40: 0 | BC40: 0 | BD40: 0 | BE40: 0 | BF40: 0 | BG40: 0 | BH40: 0 | BI40: 0 | BJ40: 0 | BK40: 0 | BL40: 0 | BM40: 0 | BN40: 0 | BO40: 0 | BP40: 0 | BQ40: 0 | BR40: 0 | BS40: 0 | BT40: 0 | BU40: 0 | BV40: 0 | BW40: 0 | BX40: 0 | BY40: 0 | BZ40: 0 | CA40: 0 | CB40: 0 | CC40: 0 | CD40: 0 | CE40: 0 | CF40: 0 | CG40: 0 | CH40: 0 | CI40: 0 | CJ40: 0 | CK40: 0 | CL40: 0 | CM40: 0 | CN40: 0
A41: 37 | C41: 0 | E41: 0 | I41: 0 | M41: 0 | Q41: 0 | U41: 0 | Y41: 0 | AC41: 0 | AG41: 0 | AK41: 0 | AO41: 0 | AS41: 0 | AW41: 0 | AZ41: 0 | BA41: 0 | BB41: 0 | BC41: 0 | BD41: 0 | BE41: 0 | BF41: 0 | BG41: 0 | BH41: 0 | BI41: 0 | BJ41: 0 | BK41: 0 | BL41: 0 | BM41: 0 | BN41: 0 | BO41: 0 | BP41: 0 | BQ41: 0 | BR41: 0 | BS41: 0 | BT41: 0 | BU41: 0 | BV41: 0 | BW41: 0 | BX41: 0 | BY41: 0 | BZ41: 0 | CA41: 0 | CB41: 0 | CC41: 0 | CD41: 0 | CE41: 0 | CF41: 0 | CG41: 0 | CH41: 0 | CI41: 0 | CJ41: 0 | CK41: 0 | CL41: 0 | CM41: 0 | CN41: 0
A42: 38 | C42: 0 | E42: 0 | I42: 0 | M42: 0 | Q42: 0 | U42: 0 | Y42: 0 | AC42: 0 | AG42: 0 | AK42: 0 | AO42: 0 | AS42: 0 | AW42: 0 | AZ42: 0 | BA42: 0 | BB42: 0 | BC42: 0 | BD42: 0 | BE42: 0 | BF42: 0 | BG42: 0 | BH42: 0 | BI42: 0 | BJ42: 0 | BK42: 0 | BL42: 0 | BM42: 0 | BN42: 0 | BO42: 0 | BP42: 0 | BQ42: 0 | BR42: 0 | BS42: 0 | BT42: 0 | BU42: 0 | BV42: 0 | BW42: 0 | BX42: 0 | BY42: 0 | BZ42: 0 | CA42: 0 | CB42: 0 | CC42: 0 | CD42: 0 | CE42: 0 | CF42: 0 | CG42: 0 | CH42: 0 | CI42: 0 | CJ42: 0 | CK42: 0 | CL42: 0 | CM42: 0 | CN42: 0
A43: 39 | C43: 0 | E43: 0 | I43: 0 | M43: 0 | Q43: 0 | U43: 0 | Y43: 0 | AC43: 0 | AG43: 0 | AK43: 0 | AO43: 0 | AS43: 0 | AW43: 0 | AZ43: 0 | BA43: 0 | BB43: 0 | BC43: 0 | BD43: 0 | BE43: 0 | BF43: 0 | BG43: 0 | BH43: 0 | BI43: 0 | BJ43: 0 | BK43: 0 | BL43: 0 | BM43: 0 | BN43: 0 | BO43: 0 | BP43: 0 | BQ43: 0 | BR43: 0 | BS43: 0 | BT43: 0 | BU43: 0 | BV43: 0 | BW43: 0 | BX43: 0 | BY43: 0 | BZ43: 0 | CA43: 0 | CB43: 0 | CC43: 0 | CD43: 0 | CE43: 0 | CF43: 0 | CG43: 0 | CH43: 0 | CI43: 0 | CJ43: 0 | CK43: 0 | CL43: 0 | CM43: 0 | CN43: 0
A44: 40 | C44: 0 | E44: 0 | I44: 0 | M44: 0 | Q44: 0 | U44: 0 | Y44: 0 | AC44: 0 | AG44: 0 | AK44: 0 | AO44: 0 | AS44: 0 | AW44: 0 | AZ44: 0 | BA44: 0 | BB44: 0 | BC44: 0 | BD44: 0 | BE44: 0 | BF44: 0 | BG44: 0 | BH44: 0 | BI44: 0 | BJ44: 0 | BK44: 0 | BL44: 0 | BM44: 0 | BN44: 0 | BO44: 0 | BP44: 0 | BQ44: 0 | BR44: 0 | BS44: 0 | BT44: 0 | BU44: 0 | BV44: 0 | BW44: 0 | BX44: 0 | BY44: 0 | BZ44: 0 | CA44: 0 | CB44: 0 | CC44: 0 | CD44: 0 | CE44: 0 | CF44: 0 | CG44: 0 | CH44: 0 | CI44: 0 | CJ44: 0 | CK44: 0 | CL44: 0 | CM44: 0 | CN44: 0
A45: 41 | C45: 0 | E45: 0 | I45: 0 | M45: 0 | Q45: 0 | U45: 0 | Y45: 0 | AC45: 0 | AG45: 0 | AK45: 0 | AO45: 0 | AS45: 0 | AW45: 0 | AZ45: 0 | BA45: 0 | BB45: 0 | BC45: 0 | BD45: 0 | BE45: 0 | BF45: 0 | BG45: 0 | BH45: 0 | BI45: 0 | BJ45: 0 | BK45: 0 | BL45: 0 | BM45: 0 | BN45: 0 | BO45: 0 | BP45: 0 | BQ45: 0 | BR45: 0 | BS45: 0 | BT45: 0 | BU45: 0 | BV45: 0 | BW45: 0 | BX45: 0 | BY45: 0 | BZ45: 0 | CA45: 0 | CB45: 0 | CC45: 0 | CD45: 0 | CE45: 0 | CF45: 0 | CG45: 0 | CH45: 0 | CI45: 0 | CJ45: 0 | CK45: 0 | CL45: 0 | CM45: 0 | CN45: 0
A46: 42 | C46: 0 | E46: 0 | I46: 0 | M46: 0 | Q46: 0 | U46: 0 | Y46: 0 | AC46: 0 | AG46: 0 | AK46: 0 | AO46: 0 | AS46: 0 | AW46: 0 | AZ46: 0 | BA46: 0 | BB46: 0 | BC46: 0 | BD46: 0 | BE46: 0 | BF46: 0 | BG46: 0 | BH46: 0 | BI46: 0 | BJ46: 0 | BK46: 0 | BL46: 0 | BM46: 0 | BN46: 0 | BO46: 0 | BP46: 0 | BQ46: 0 | BR46: 0 | BS46: 0 | BT46: 0 | BU46: 0 | BV46: 0 | BW46: 0 | BX46: 0 | BY46: 0 | BZ46: 0 | CA46: 0 | CB46: 0 | CC46: 0 | CD46: 0 | CE46: 0 | CF46: 0 | CG46: 0 | CH46: 0 | CI46: 0 | CJ46: 0 | CK46: 0 | CL46: 0 | CM46: 0 | CN46: 0
A47: 43 | C47: 0 | E47: 0 | I47: 0 | M47: 0 | Q47: 0 | U47: 0 | Y47: 0 | AC47: 0 | AG47: 0 | AK47: 0 | AO47: 0 | AS47: 0 | AW47: 0 | AZ47: 0 | BA47: 0 | BB47: 0 | BC47: 0 | BD47: 0 | BE47: 0 | BF47: 0 | BG47: 0 | BH47: 0 | BI47: 0 | BJ47: 0 | BK47: 0 | BL47: 0 | BM47: 0 | BN47: 0 | BO47: 0 | BP47: 0 | BQ47: 0 | BR47: 0 | BS47: 0 | BT47: 0 | BU47: 0 | BV47: 0 | BW47: 0 | BX47: 0 | BY47: 0 | BZ47: 0 | CA47: 0 | CB47: 0 | CC47: 0 | CD47: 0 | CE47: 0 | CF47: 0 | CG47: 0 | CH47: 0 | CI47: 0 | CJ47: 0 | CK47: 0 | CL47: 0 | CM47: 0 | CN47: 0
A48: 44 | C48: 0 | E48: 0 | I48: 0 | M48: 0 | Q48: 0 | U48: 0 | Y48: 0 | AC48: 0 | AG48: 0 | AK48: 0 | AO48: 0 | AS48: 0 | AW48: 0 | AZ48: 0 | BA48: 0 | BB48: 0 | BC48: 0 | BD48: 0 | BE48: 0 | BF48: 0 | BG48: 0 | BH48: 0 | BI48: 0 | BJ48: 0 | BK48: 0 | BL48: 0 | BM48: 0 | BN48: 0 | BO48: 0 | BP48: 0 | BQ48: 0 | BR48: 0 | BS48: 0 | BT48: 0 | BU48: 0 | BV48: 0 | BW48: 0 | BX48: 0 | BY48: 0 | BZ48: 0 | CA48: 0 | CB48: 0 | CC48: 0 | CD48: 0 | CE48: 0 | CF48: 0 | CG48: 0 | CH48: 0 | CI48: 0 | CJ48: 0 | CK48: 0 | CL48: 0 | CM48: 0 | CN48: 0
A49: 45 | C49: 0 | E49: 0 | I49: 0 | M49: 0 | Q49: 0 | U49: 0 | Y49: 0 | AC49: 0 | AG49: 0 | AK49: 0 | AO49: 0 | AS49: 0 | AW49: 0 | AZ49: 0 | BA49: 0 | BB49: 0 | BC49: 0 | BD49: 0 | BE49: 0 | BF49: 0 | BG49: 0 | BH49: 0 | BI49: 0 | BJ49: 0 | BK49: 0 | BL49: 0 | BM49: 0 | BN49: 0 | BO49: 0 | BP49: 0 | BQ49: 0 | BR49: 0 | BS49: 0 | BT49: 0 | BU49: 0 | BV49: 0 | BW49: 0 | BX49: 0 | BY49: 0 | BZ49: 0 | CA49: 0 | CB49: 0 | CC49: 0 | CD49: 0 | CE49: 0 | CF49: 0 | CG49: 0 | CH49: 0 | CI49: 0 | CJ49: 0 | CK49: 0 | CL49: 0 | CM49: 0 | CN49: 0

Sheet Vazia
